OrganisationURI,OrganisationLabel,Organisation Unit,TransactionNumber,Invoice Ref.,Beneficiary Name,Expense Type,Purpose,Payment Date,Amount
https://opendatacommunities.org/doc/district-council/cheltenham ,Cheltenham Borough Council,Cheltenham Municipal Offices,14083048,411037,A & E Fire and Security Ltd,R2083-ADB101,R&M of Build - Routine,11/12/2020,534.35 
https://opendatacommunities.org/doc/district-council/cheltenham ,Cheltenham Borough Council,Pittville Pump Room Repairs & Maintenance,14083263,411172,A & E Fire and Security Ltd,R2042-CUL113,R & M of Build Fire Systems,11/12/2020,530.35 
https://opendatacommunities.org/doc/district-council/cheltenham ,Cheltenham Borough Council,Repairs and Maintenance,14083137,411290,A & E Fire and Security Ltd,R2042-HRA100,R & M of Build Fire Systems,11/12/2020,"1,532.90 "
https://opendatacommunities.org/doc/district-council/cheltenham ,Cheltenham Borough Council,Town Hall Repairs & Maintenance,14083693,411814,A & E Fire and Security Ltd,R2083-CUL112,R&M of Build - Routine,23/12/2020,629.66 
https://opendatacommunities.org/doc/district-council/cheltenham ,Cheltenham Borough Council,Art Gallery & Museum Repairs & Maintenance,14083687,411919,A & E Fire and Security Ltd,R2083-CUL117,R&M of Build - Routine,23/12/2020,512.22 
https://opendatacommunities.org/doc/district-council/cheltenham ,Cheltenham Borough Council,Cheltenham Municipal Offices,14083506,1052564,A1 Maintenance (Stroud) Limited,R2004-ADB101,R & M of Build Programmed,23/12/2020,"33,845.93 "
https://opendatacommunities.org/doc/district-council/cheltenham ,Cheltenham Borough Council,Parks & Gardens Operations,14083560,128174,Abbey Surfacing,R2075-OPS001,Grounds Maintenance - Contract,23/12/2020,"-1,310.00 "
https://opendatacommunities.org/doc/district-council/cheltenham ,Cheltenham Borough Council,Parks & Gardens Operations,14083560,128174,Abbey Surfacing,R2075-OPS001,Grounds Maintenance - Contract,23/12/2020,"1,310.00 "
https://opendatacommunities.org/doc/district-council/cheltenham ,Cheltenham Borough Council,Parks & Gardens Operations,14083560,128174,Abbey Surfacing,R2075-OPS001,Grounds Maintenance - Contract,23/12/2020,"1,310.00 "
https://opendatacommunities.org/doc/district-council/cheltenham ,Cheltenham Borough Council,Sports & Open Spaces Operations,14083561,128175,Abbey Surfacing,R2076-OPS002,Grounds Maintenance - Non Contract,23/12/2020,915.00 
https://opendatacommunities.org/doc/district-council/cheltenham ,Cheltenham Borough Council,Sports & Open Spaces Operations,14083561,128175,Abbey Surfacing,R2076-OPS002,Grounds Maintenance - Non Contract,23/12/2020,915.00 
https://opendatacommunities.org/doc/district-council/cheltenham ,Cheltenham Borough Council,Sports & Open Spaces Operations,14083561,128175,Abbey Surfacing,R2076-OPS002,Grounds Maintenance - Non Contract,23/12/2020,-915.00 
https://opendatacommunities.org/doc/district-council/cheltenham ,Cheltenham Borough Council,Modernisation,14083362,624,Acutance Consulting Limited,R4400-SUP107,Services - Professional Fees,18/12/2020,"1,400.00 "
https://opendatacommunities.org/doc/district-council/cheltenham ,Cheltenham Borough Council,Door Entry,14081651,38119,Allhands Limited T/A Harrold Jones Services,C1107-CAH010,Building Works,18/12/2020,"1,960.00 "
https://opendatacommunities.org/doc/district-council/cheltenham ,Cheltenham Borough Council,Individual Electoral Registration,14083200,32620,Alpha Response Print & Mail Limited,R4300-ELE010,Printing - Services,11/12/2020,584.25 
https://opendatacommunities.org/doc/district-council/cheltenham ,Cheltenham Borough Council,Off Street Car Parking Infrastructure Investment,14082960,31240,Amelio Utilities (Gloucester) Ltd T/A 3 Counties Drain Services,C1100-CAP129,Construction,04/12/2020,"5,529.25 "
https://opendatacommunities.org/doc/district-council/cheltenham ,Cheltenham Borough Council,Minster Innovation Exchange,14083387,339472,Anthony Collins Solicitors LLP,C1004-CAP515,Legal Fees,18/12/2020,"10,624.50 "
https://opendatacommunities.org/doc/district-council/cheltenham ,Cheltenham Borough Council,Development Costs - S106 Prestbury,14083672,340062,Anthony Collins Solicitors LLP,C1004-CAH080,Legal Fees,23/12/2020,850.00 
https://opendatacommunities.org/doc/district-council/cheltenham ,Cheltenham Borough Council,Sports & Open Spaces Repairs & Maintenance,14083026,1160,Ardagh Management Limited,R2004-OPS122,R & M of Build Programmed,04/12/2020,"1,825.00 "
https://opendatacommunities.org/doc/district-council/cheltenham ,Cheltenham Borough Council,Cheltenham Municipal Offices,14083072,1174,Ardagh Management Limited,R2008-ADB101,R & M of Build - Reactive Repairs,11/12/2020,885.00 
https://opendatacommunities.org/doc/district-council/cheltenham ,Cheltenham Borough Council,Cheltenham Municipal Offices,14083051,1175,Ardagh Management Limited,R2008-ADB101,R & M of Build - Reactive Repairs,11/12/2020,618.00 
https://opendatacommunities.org/doc/district-council/cheltenham ,Cheltenham Borough Council,"Cemetery, Crematorium and Churchyards",14083226,1177,Ardagh Management Limited,R2006-CCM001,R & M of Build Re-decoration,11/12/2020,-620.00 
https://opendatacommunities.org/doc/district-council/cheltenham ,Cheltenham Borough Council,"Cemetery, Crematorium and Churchyards",14083226,1177,Ardagh Management Limited,R2001-CCM001,R & M of Fix & Fit - General,11/12/2020,"1,180.00 "
https://opendatacommunities.org/doc/district-council/cheltenham ,Cheltenham Borough Council,"Cemetery, Crematorium and Churchyards",14083226,1177,Ardagh Management Limited,R2003-CCM001,R & M of Build Emergency Works,11/12/2020,"-6,860.00 "
https://opendatacommunities.org/doc/district-council/cheltenham ,Cheltenham Borough Council,"Cemetery, Crematorium and Churchyards",14083226,1177,Ardagh Management Limited,R2006-CCM001,R & M of Build Re-decoration,11/12/2020,620.00 
https://opendatacommunities.org/doc/district-council/cheltenham ,Cheltenham Borough Council,"Cemetery, Crematorium and Churchyards",14083226,1177,Ardagh Management Limited,R2001-CCM001,R & M of Fix & Fit - General,11/12/2020,"1,180.00 "
https://opendatacommunities.org/doc/district-council/cheltenham ,Cheltenham Borough Council,"Cemetery, Crematorium and Churchyards",14083226,1177,Ardagh Management Limited,R2006-CCM001,R & M of Build Re-decoration,11/12/2020,"6,860.00 "
https://opendatacommunities.org/doc/district-council/cheltenham ,Cheltenham Borough Council,"Cemetery, Crematorium and Churchyards",14083226,1177,Ardagh Management Limited,R2006-CCM001,R & M of Build Re-decoration,11/12/2020,620.00 
https://opendatacommunities.org/doc/district-council/cheltenham ,Cheltenham Borough Council,"Cemetery, Crematorium and Churchyards",14083226,1177,Ardagh Management Limited,R2006-CCM001,R & M of Build Re-decoration,11/12/2020,"6,860.00 "
https://opendatacommunities.org/doc/district-council/cheltenham ,Cheltenham Borough Council,"Cemetery, Crematorium and Churchyards",14083226,1177,Ardagh Management Limited,R2001-CCM001,R & M of Fix & Fit - General,11/12/2020,"-1,180.00 "
https://opendatacommunities.org/doc/district-council/cheltenham ,Cheltenham Borough Council,Crematorium Scheme: New Build,14083298,1181,Ardagh Management Limited,C1100-CAP601,Construction,11/12/2020,"3,368.00 "
https://opendatacommunities.org/doc/district-council/cheltenham ,Cheltenham Borough Council,"Cemetery, Crematorium and Churchyards",14083545,1182,Ardagh Management Limited,R2076-CCM001,Grounds Maintenance - Non Contract,23/12/2020,"2,865.00 "
https://opendatacommunities.org/doc/district-council/cheltenham ,Cheltenham Borough Council,"Cemetery, Crematorium and Churchyards",14083478,1183,Ardagh Management Limited,R2079-CCM001,Sanitary and Plumbing,18/12/2020,"1,100.00 "
https://opendatacommunities.org/doc/district-council/cheltenham ,Cheltenham Borough Council,"Cemetery, Crematorium and Churchyards",14083382,1184,Ardagh Management Limited,R4026-CCM001,Operational Materials,18/12/2020,830.00 
https://opendatacommunities.org/doc/district-council/cheltenham ,Cheltenham Borough Council,Crematorium Scheme: New Build,14083577,1186,Ardagh Management Limited,C1100-CAP601,Construction,23/12/2020,842.00 
https://opendatacommunities.org/doc/district-council/cheltenham ,Cheltenham Borough Council,Income and Expenditure on Investment Properties and Changes in Their Fair Value,14083543,1187,Ardagh Management Limited,R2004-FIE040,R & M of Build Programmed,23/12/2020,"7,950.00 "
https://opendatacommunities.org/doc/district-council/cheltenham ,Cheltenham Borough Council,Insurances,14082996,503261094,Arthur J Gallagher Insurance Brokers Limited,R2800-SUP035,Insurances - Premises,04/12/2020,"94,369.15 "
https://opendatacommunities.org/doc/district-council/cheltenham ,Cheltenham Borough Council,Supervision and Management,14082996,503261094,Arthur J Gallagher Insurance Brokers Limited,R2801-HRA110,Insurances - Property All Risks,04/12/2020,"110,399.92 "
https://opendatacommunities.org/doc/district-council/cheltenham ,Cheltenham Borough Council,Fleet Management,14082994,503261602,Arthur J Gallagher Insurance Brokers Limited,R3500-SUP034,Insurance - Vehicles,04/12/2020,"17,212.14 "
https://opendatacommunities.org/doc/district-council/cheltenham ,Cheltenham Borough Council,Insurances,14082998,503261724,Arthur J Gallagher Insurance Brokers Limited,R2802-SUP035,Insurances - Engineering/Computer,04/12/2020,"21,181.89 "
https://opendatacommunities.org/doc/district-council/cheltenham ,Cheltenham Borough Council,Insurances,14082993,503261862,Arthur J Gallagher Insurance Brokers Limited,R4960-SUP035,Insurances,04/12/2020,"2,693.70 "
https://opendatacommunities.org/doc/district-council/cheltenham ,Cheltenham Borough Council,Insurances,14082999,503262015,Arthur J Gallagher Insurance Brokers Limited,R4960-SUP035,Insurances,04/12/2020,"15,860.36 "
https://opendatacommunities.org/doc/district-council/cheltenham ,Cheltenham Borough Council,Insurances,14082995,503262154,Arthur J Gallagher Insurance Brokers Limited,R4960-SUP035,Insurances,04/12/2020,"16,899.68 "
https://opendatacommunities.org/doc/district-council/cheltenham ,Cheltenham Borough Council,Window & Door Renewals,14083449,255,Assured Fire Door Services Ltd,C1107-CAH017,Building Works,18/12/2020,602.10 
https://opendatacommunities.org/doc/district-council/cheltenham ,Cheltenham Borough Council,Cyber Business Park,14082933,7036207,Avison Young (UK) Limited,R4411-PLP105,Consultancy Fees,04/12/2020,"24,520.00 "
https://opendatacommunities.org/doc/district-council/cheltenham ,Cheltenham Borough Council,Cyber Business Park,14082932,7036209,Avison Young (UK) Limited,R4411-PLP105,Consultancy Fees,04/12/2020,"4,800.00 "
https://opendatacommunities.org/doc/district-council/cheltenham ,Cheltenham Borough Council,Development costs - Monkscroft,14083484,BH:59410,Baily Garner LLP,C1111-CAH061,Clerk of Works,18/12/2020,"1,462.50 "
https://opendatacommunities.org/doc/district-council/cheltenham ,Cheltenham Borough Council,Development costs - 320 Swindon Road,14083034,2144,BHB Clive Petch Limited,C1113-CAH071,Architect Fees,04/12/2020,"2,900.00 "
https://opendatacommunities.org/doc/district-council/cheltenham ,Cheltenham Borough Council,Income and Expenditure on Investment Properties and Changes in Their Fair Value,14083334,460579257,British Gas Business,R2100-FIE040,Electricity,11/12/2020,743.39 
https://opendatacommunities.org/doc/district-council/cheltenham ,Cheltenham Borough Council,Repairs and Maintenance,14083010,SI00057672,British Gas Social Housing Ltd t/a PH Jones,R2040-HRA100,R & M of Build Central Heating,04/12/2020,"1,785.26 "
https://opendatacommunities.org/doc/district-council/cheltenham ,Cheltenham Borough Council,Repairs and Maintenance,14083001,SI00057701,British Gas Social Housing Ltd t/a PH Jones,R2040-HRA100,R & M of Build Central Heating,04/12/2020,"2,522.65 "
https://opendatacommunities.org/doc/district-council/cheltenham ,Cheltenham Borough Council,Repairs and Maintenance,14083000,SI00057714,British Gas Social Housing Ltd t/a PH Jones,R2040-HRA100,R & M of Build Central Heating,04/12/2020,"2,833.13 "
https://opendatacommunities.org/doc/district-council/cheltenham ,Cheltenham Borough Council,Repairs and Maintenance,14083005,SI00057717,British Gas Social Housing Ltd t/a PH Jones,R2016-HRA100,R & M of Build Void Repairs,04/12/2020,"1,225.70 "
https://opendatacommunities.org/doc/district-council/cheltenham ,Cheltenham Borough Council,Repairs and Maintenance,14083030,SI00057728,British Gas Social Housing Ltd t/a PH Jones,R2040-HRA100,R & M of Build Central Heating,04/12/2020,"1,244.00 "
https://opendatacommunities.org/doc/district-council/cheltenham ,Cheltenham Borough Council,Repairs and Maintenance,14083027,SI00057744,British Gas Social Housing Ltd t/a PH Jones,R2040-HRA100,R & M of Build Central Heating,04/12/2020,"1,765.96 "
https://opendatacommunities.org/doc/district-council/cheltenham ,Cheltenham Borough Council,Repairs and Maintenance,14083031,SI00057780,British Gas Social Housing Ltd t/a PH Jones,R2040-HRA100,R & M of Build Central Heating,04/12/2020,"4,307.91 "
https://opendatacommunities.org/doc/district-council/cheltenham ,Cheltenham Borough Council,New Heating Installations,14083177,SI00057785,British Gas Social Housing Ltd t/a PH Jones,C1107-CAH009,Building Works,04/12/2020,"12,297.78 "
https://opendatacommunities.org/doc/district-council/cheltenham ,Cheltenham Borough Council,Repairs and Maintenance,14083179,SI00057786,British Gas Social Housing Ltd t/a PH Jones,R2040-HRA100,R & M of Build Central Heating,04/12/2020,"4,319.84 "
https://opendatacommunities.org/doc/district-council/cheltenham ,Cheltenham Borough Council,Repairs and Maintenance,14083300,SI00057823,British Gas Social Housing Ltd t/a PH Jones,R2040-HRA100,R & M of Build Central Heating,18/12/2020,"1,746.45 "
https://opendatacommunities.org/doc/district-council/cheltenham ,Cheltenham Borough Council,Repairs and Maintenance,14083178,SI00057825,British Gas Social Housing Ltd t/a PH Jones,R2040-HRA100,R & M of Build Central Heating,04/12/2020,"1,170.46 "
https://opendatacommunities.org/doc/district-council/cheltenham ,Cheltenham Borough Council,Repairs and Maintenance,14083301,SI00057856,British Gas Social Housing Ltd t/a PH Jones,R2040-HRA100,R & M of Build Central Heating,18/12/2020,646.88 
https://opendatacommunities.org/doc/district-council/cheltenham ,Cheltenham Borough Council,Repairs and Maintenance,14083547,SI00057946,British Gas Social Housing Ltd t/a PH Jones,R2040-HRA100,R & M of Build Central Heating,23/12/2020,"8,266.31 "
https://opendatacommunities.org/doc/district-council/cheltenham ,Cheltenham Borough Council,Repairs and Maintenance,14083448,SI00057949,British Gas Social Housing Ltd t/a PH Jones,R2040-HRA100,R & M of Build Central Heating,18/12/2020,"20,789.39 "
https://opendatacommunities.org/doc/district-council/cheltenham ,Cheltenham Borough Council,Repairs and Maintenance,14083419,SI00057950,British Gas Social Housing Ltd t/a PH Jones,R2040-HRA100,R & M of Build Central Heating,18/12/2020,"4,424.34 "
https://opendatacommunities.org/doc/district-council/cheltenham ,Cheltenham Borough Council,Repairs and Maintenance,14083548,SI00057961,British Gas Social Housing Ltd t/a PH Jones,R2040-HRA100,R & M of Build Central Heating,23/12/2020,"1,563.97 "
https://opendatacommunities.org/doc/district-council/cheltenham ,Cheltenham Borough Council,Repairs and Maintenance,14083557,SI00058046,British Gas Social Housing Ltd t/a PH Jones,R2040-HRA100,R & M of Build Central Heating,23/12/2020,"4,385.53 "
https://opendatacommunities.org/doc/district-council/cheltenham ,Cheltenham Borough Council,Repairs and Maintenance,14083549,SI00058051,British Gas Social Housing Ltd t/a PH Jones,R2016-HRA100,R & M of Build Void Repairs,23/12/2020,560.32 
https://opendatacommunities.org/doc/district-council/cheltenham ,Cheltenham Borough Council,Repairs and Maintenance,14083572,SI00058052,British Gas Social Housing Ltd t/a PH Jones,R2040-HRA100,R & M of Build Central Heating,23/12/2020,"2,940.30 "
https://opendatacommunities.org/doc/district-council/cheltenham ,Cheltenham Borough Council,Car Parks - Off Street Operations,14083467,58957,British Parking Association,R4701-CPK001,Subscriptions,18/12/2020,906.00 
https://opendatacommunities.org/doc/district-council/cheltenham ,Cheltenham Borough Council,Animal Control,14082978,801379038,Bromsgrove District Council,R4413-REG003,Dog Kennels Fees,04/12/2020,610.00 
https://opendatacommunities.org/doc/district-council/cheltenham ,Cheltenham Borough Council,Supervision and Management,14083571,Q029 PA,BT (Business Billing - Durham),R4515-HRA110,Comms - Telephone Call Charges,23/12/2020,715.80 
https://opendatacommunities.org/doc/district-council/cheltenham ,Cheltenham Borough Council,CCTV,14083395,20031153,BT Redcare,R4436-CCT001,CCTV Line Rental,18/12/2020,"1,020.00 "
https://opendatacommunities.org/doc/district-council/cheltenham ,Cheltenham Borough Council,Cheltenham Municipal Offices,14083453,08/451976,Bunzl Cleaning and Hygiene Supplies,R4009-ADB101,Materials - Cleaning Materials,18/12/2020,707.59 
https://opendatacommunities.org/doc/district-council/cheltenham ,Cheltenham Borough Council,HRA COVID-19,14083444,20/14188,Campbell Tickell Limited,R4401-HRA800,Services - Fees and Charges,18/12/2020,"5,650.00 "
https://opendatacommunities.org/doc/district-council/cheltenham ,Cheltenham Borough Council,Recreation Centre Repairs & Maintenance,14083422,301267/2020/10,Centrica Business Solutions (Generations) limited,R2100-REC111,Electricity,18/12/2020,"3,026.68 "
https://opendatacommunities.org/doc/district-council/cheltenham ,Cheltenham Borough Council,Recreation Centre Repairs & Maintenance,14083644,301267/2020/11,Centrica Business Solutions (Generations) limited,R2100-REC111,Electricity,23/12/2020,"2,194.78 "
https://opendatacommunities.org/doc/district-council/cheltenham ,Cheltenham Borough Council,Cheltenham Business Improvement District (BID) Levy,14083423,CBID0117,Cheltenham Bid Limited,R4974-HLD160,Reimbursement to other L.A.'s,22/12/2020,"38,140.63 "
https://opendatacommunities.org/doc/district-council/cheltenham ,Cheltenham Borough Council,Xmas in Cheltenham,14083639,CBID0118,Cheltenham Bid Limited,R4400-ECD101,Services - Professional Fees,23/12/2020,"32,900.00 "
https://opendatacommunities.org/doc/district-council/cheltenham ,Cheltenham Borough Council,Cheltenham Business Improvement District (BID) Levy,14083713,CBID0120,Cheltenham Bid Limited,R4974-HLD160,Reimbursement to other L.A.'s,21/12/2020,"16,496.28 "
https://opendatacommunities.org/doc/district-council/cheltenham ,Cheltenham Borough Council,Community Welfare Grants,14083187,COMMUNITY RESILIENCE POETRY,Cheltenham Poetry Festival C.I.C.,R6280-GBD001,Grants,11/12/2020,"1,000.00 "
https://opendatacommunities.org/doc/district-council/cheltenham ,Cheltenham Borough Council,Revenues & Benefits Overheads,14083209,C/RB207385,Civica UK Limited,R4531-LTC101,IT - Purchase of Software,18/12/2020,"17,500.00 "
https://opendatacommunities.org/doc/district-council/cheltenham ,Cheltenham Borough Council,Miscellaneous Operational Properties,14083160,7676,"Clarke, Nicholls & Marcel Limited (CNM)",R4401-ADB104,Services - Fees and Charges,11/12/2020,"5,300.00 "
https://opendatacommunities.org/doc/district-council/cheltenham ,Cheltenham Borough Council,Bulking Facility,14083093,112078,Clearpoint Recycling Ltd,R4401-RYC008,Services - Fees and Charges,04/12/2020,"1,214.72 "
https://opendatacommunities.org/doc/district-council/cheltenham ,Cheltenham Borough Council,Bulking Facility,14083094,112079,Clearpoint Recycling Ltd,R4401-RYC008,Services - Fees and Charges,04/12/2020,"1,090.56 "
https://opendatacommunities.org/doc/district-council/cheltenham ,Cheltenham Borough Council,Bulking Facility,14083090,112080,Clearpoint Recycling Ltd,R4401-RYC008,Services - Fees and Charges,04/12/2020,"1,195.52 "
https://opendatacommunities.org/doc/district-council/cheltenham ,Cheltenham Borough Council,Bulking Facility,14083095,112081,Clearpoint Recycling Ltd,R4401-RYC008,Services - Fees and Charges,04/12/2020,"1,177.60 "
https://opendatacommunities.org/doc/district-council/cheltenham ,Cheltenham Borough Council,Bulking Facility,14083092,112082,Clearpoint Recycling Ltd,R4401-RYC008,Services - Fees and Charges,04/12/2020,"1,167.36 "
https://opendatacommunities.org/doc/district-council/cheltenham ,Cheltenham Borough Council,Bulking Facility,14083234,112083,Clearpoint Recycling Ltd,R4401-RYC008,Services - Fees and Charges,11/12/2020,"1,217.28 "
https://opendatacommunities.org/doc/district-council/cheltenham ,Cheltenham Borough Council,Bulking Facility,14083232,112084,Clearpoint Recycling Ltd,R4401-RYC008,Services - Fees and Charges,11/12/2020,"1,154.56 "
https://opendatacommunities.org/doc/district-council/cheltenham ,Cheltenham Borough Council,Bulking Facility,14083236,112085,Clearpoint Recycling Ltd,R4401-RYC008,Services - Fees and Charges,11/12/2020,"1,098.24 "
https://opendatacommunities.org/doc/district-council/cheltenham ,Cheltenham Borough Council,Bulking Facility,14083235,112086,Clearpoint Recycling Ltd,R4401-RYC008,Services - Fees and Charges,11/12/2020,"1,180.16 "
https://opendatacommunities.org/doc/district-council/cheltenham ,Cheltenham Borough Council,Bulking Facility,14083269,112087,Clearpoint Recycling Ltd,R4401-RYC008,Services - Fees and Charges,11/12/2020,"1,127.68 "
https://opendatacommunities.org/doc/district-council/cheltenham ,Cheltenham Borough Council,Bulking Facility,14083267,112088,Clearpoint Recycling Ltd,R4401-RYC008,Services - Fees and Charges,11/12/2020,"1,282.56 "
https://opendatacommunities.org/doc/district-council/cheltenham ,Cheltenham Borough Council,Bulking Facility,14083266,112089,Clearpoint Recycling Ltd,R4401-RYC008,Services - Fees and Charges,11/12/2020,"1,166.08 "
https://opendatacommunities.org/doc/district-council/cheltenham ,Cheltenham Borough Council,Bulking Facility,14083268,112092,Clearpoint Recycling Ltd,R4401-RYC008,Services - Fees and Charges,11/12/2020,"1,096.96 "
https://opendatacommunities.org/doc/district-council/cheltenham ,Cheltenham Borough Council,Bulking Facility,14083668,112169,Clearpoint Recycling Ltd,R4401-RYC008,Services - Fees and Charges,23/12/2020,995.00 
https://opendatacommunities.org/doc/district-council/cheltenham ,Cheltenham Borough Council,Bulking Facility,14083233,112189,Clearpoint Recycling Ltd,R4401-RYC008,Services - Fees and Charges,11/12/2020,"1,150.72 "
https://opendatacommunities.org/doc/district-council/cheltenham ,Cheltenham Borough Council,Bulking Facility,14083364,112298,Clearpoint Recycling Ltd,R4401-RYC008,Services - Fees and Charges,18/12/2020,"1,723.68 "
https://opendatacommunities.org/doc/district-council/cheltenham ,Cheltenham Borough Council,Bulking Facility,14083442,112300,Clearpoint Recycling Ltd,R4401-RYC008,Services - Fees and Charges,18/12/2020,"1,136.64 "
https://opendatacommunities.org/doc/district-council/cheltenham ,Cheltenham Borough Council,Bulking Facility,14083443,112301,Clearpoint Recycling Ltd,R4401-RYC008,Services - Fees and Charges,18/12/2020,"1,200.64 "
https://opendatacommunities.org/doc/district-council/cheltenham ,Cheltenham Borough Council,Bulking Facility,14083441,112302,Clearpoint Recycling Ltd,R4401-RYC008,Services - Fees and Charges,18/12/2020,"1,157.12 "
https://opendatacommunities.org/doc/district-council/cheltenham ,Cheltenham Borough Council,Bulking Facility,14083440,112303,Clearpoint Recycling Ltd,R4401-RYC008,Services - Fees and Charges,18/12/2020,"1,123.84 "
https://opendatacommunities.org/doc/district-council/cheltenham ,Cheltenham Borough Council,"Cemetery, Crematorium and Churchyards",14083660,141220,Cleevelands Medical Centre,R4401-CCM001,Services - Fees and Charges,23/12/2020,"3,425.00 "
https://opendatacommunities.org/doc/district-council/cheltenham ,Cheltenham Borough Council,"Cemetery, Crematorium and Churchyards",14083002,181120,Cleevelands Medical Centre,R4401-CCM001,Services - Fees and Charges,04/12/2020,"3,330.00 "
https://opendatacommunities.org/doc/district-council/cheltenham ,Cheltenham Borough Council,CCTV,14083202,14651,Computerised & Digital Security Systems Limited,C4009-CAP201,C C T V,18/12/2020,"8,294.25 "
https://opendatacommunities.org/doc/district-council/cheltenham ,Cheltenham Borough Council,Parks & Gardens Operations,14083162,2765/94,Cotswold Contractors (glos) Ltd,R2075-OPS001,Grounds Maintenance - Contract,11/12/2020,782.50 
https://opendatacommunities.org/doc/district-council/cheltenham ,Cheltenham Borough Council,Parks & Gardens Operations,14083609,2765/95,Cotswold Contractors (glos) Ltd,R4003-OPS001,Tools & Equipment - R & M,23/12/2020,"5,250.60 "
https://opendatacommunities.org/doc/district-council/cheltenham ,Cheltenham Borough Council,Parks & Gardens Operations,14083609,2765/95,Cotswold Contractors (glos) Ltd,R4003-OPS001,Tools & Equipment - R & M,23/12/2020,"5,250.60 "
https://opendatacommunities.org/doc/district-council/cheltenham ,Cheltenham Borough Council,Parks & Gardens Operations,14083609,2765/95,Cotswold Contractors (glos) Ltd,R4003-OPS001,Tools & Equipment - R & M,23/12/2020,"-5,250.60 "
https://opendatacommunities.org/doc/district-council/cheltenham ,Cheltenham Borough Council,Crematorium Scheme: New Build,14083220,43261,Cotswold Estates and Gardens Limited,C1100-CAP601,Construction,11/12/2020,"1,910.00 "
https://opendatacommunities.org/doc/district-council/cheltenham ,Cheltenham Borough Council,"Cemetery, Crematorium and Churchyards",14083377,43277,Cotswold Estates and Gardens Limited,R2075-CCM001,Grounds Maintenance - Contract,18/12/2020,528.00 
https://opendatacommunities.org/doc/district-council/cheltenham ,Cheltenham Borough Council,Income and Expenditure on Investment Properties and Changes in Their Fair Value,14083299,4254,Cotswold Transport Planning Limited,R4400-FIE040,Services - Professional Fees,11/12/2020,931.84 
https://opendatacommunities.org/doc/district-council/cheltenham ,Cheltenham Borough Council,Oakley Resource Centre,14083488,15118,County Clean Limited,R2700-COM101,Contract Cleaning,23/12/2020,"1,127.04 "
https://opendatacommunities.org/doc/district-council/cheltenham ,Cheltenham Borough Council,Sports & Open Spaces Operations,14083211,INV-0293,County Drain Services,R4003-OPS002,Tools & Equipment - R & M,18/12/2020,"-2,050.00 "
https://opendatacommunities.org/doc/district-council/cheltenham ,Cheltenham Borough Council,Sports & Open Spaces Operations,14083211,INV-0293,County Drain Services,R4003-OPS002,Tools & Equipment - R & M,18/12/2020,"2,050.00 "
https://opendatacommunities.org/doc/district-council/cheltenham ,Cheltenham Borough Council,Sports & Open Spaces Operations,14083211,INV-0293,County Drain Services,R4003-OPS002,Tools & Equipment - R & M,18/12/2020,"2,050.00 "
https://opendatacommunities.org/doc/district-council/cheltenham ,Cheltenham Borough Council,Sports & Open Spaces Operations,14083451,INV-0295,County Drain Services,R4003-OPS002,Tools & Equipment - R & M,18/12/2020,"3,334.00 "
https://opendatacommunities.org/doc/district-council/cheltenham ,Cheltenham Borough Council,Sports & Open Spaces Operations,14083451,INV-0295,County Drain Services,R4003-OPS002,Tools & Equipment - R & M,18/12/2020,"7,214.00 "
https://opendatacommunities.org/doc/district-council/cheltenham ,Cheltenham Borough Council,Sports & Open Spaces Operations,14083451,INV-0295,County Drain Services,R4003-OPS002,Tools & Equipment - R & M,18/12/2020,"-7,214.00 "
https://opendatacommunities.org/doc/district-council/cheltenham ,Cheltenham Borough Council,Sports & Open Spaces Operations,14083451,INV-0295,County Drain Services,R4003-OPS002,Tools & Equipment - R & M,18/12/2020,"3,880.00 "
https://opendatacommunities.org/doc/district-council/cheltenham ,Cheltenham Borough Council,Waste & Recycling - Marketing & Management,14083341,3032650,Craemer UK Limited,R4000-RYC007,Equipment Purchase,11/12/2020,"13,250.00 "
https://opendatacommunities.org/doc/district-council/cheltenham ,Cheltenham Borough Council,Waste & Recycling - Marketing & Management,14083366,3032681,Craemer UK Limited,R4000-RYC007,Equipment Purchase,18/12/2020,"7,000.00 "
https://opendatacommunities.org/doc/district-council/cheltenham ,Cheltenham Borough Council,Structural / Damp Works,14083167,45047,Curtins Consulting Limited,C1107-CAH016,Building Works,11/12/2020,975.00 
https://opendatacommunities.org/doc/district-council/cheltenham ,Cheltenham Borough Council,Car Parks - Off Street R&M,14083032,RAT/1904,Cushman & Wakefield Debenham Tie Leung Ltd,R2001-CPK101,R & M of Fix & Fit - General,11/12/2020,"28,082.50 "
https://opendatacommunities.org/doc/district-council/cheltenham ,Cheltenham Borough Council,Parks & Gardens Operations,14083199,1227,D W Brookes (Resurfacing Limited),R2075-OPS001,Grounds Maintenance - Contract,11/12/2020,"2,530.00 "
https://opendatacommunities.org/doc/district-council/cheltenham ,Cheltenham Borough Council,Parks & Gardens Operations,14083199,1227,D W Brookes (Resurfacing Limited),R2075-OPS001,Grounds Maintenance - Contract,11/12/2020,"2,530.00 "
https://opendatacommunities.org/doc/district-council/cheltenham ,Cheltenham Borough Council,Parks & Gardens Operations,14083199,1227,D W Brookes (Resurfacing Limited),R2075-OPS001,Grounds Maintenance - Contract,11/12/2020,"-2,530.00 "
https://opendatacommunities.org/doc/district-council/cheltenham ,Cheltenham Borough Council,Accountancy,14082975,7402663719,Dell Corporation Limited,R4000-SUP009,Equipment Purchase,11/12/2020,"2,086.89 "
https://opendatacommunities.org/doc/district-council/cheltenham ,Cheltenham Borough Council,Council Tax Collection,14083128,7104341,DHL Parcel UK Limited T/A UK Mail,R4520-LTC001,Postages - stamps,11/12/2020,687.36 
https://opendatacommunities.org/doc/district-council/cheltenham ,Cheltenham Borough Council,Environmental Health General,14083009,244925,Direct Communications Radio Services Limited (DCRS),R6280-REG001,Grants,11/12/2020,610.00 
https://opendatacommunities.org/doc/district-council/cheltenham ,Cheltenham Borough Council,Cheltenham Municipal Offices,14083468,82935737,Dx Network Services Limited,R4308-ADB101,Stationery,18/12/2020,"1,205.83 "
https://opendatacommunities.org/doc/district-council/cheltenham ,Cheltenham Borough Council,Development costs - Monkscroft,14083070,45420,E.G. Carter & Co. Limited,C1107-CAH061,Building Works,04/12/2020,"213,053.56 "
https://opendatacommunities.org/doc/district-council/cheltenham ,Cheltenham Borough Council,Development costs - Monkscroft,14083070,45420,E.G. Carter & Co. Limited,C1107-CAH061,Building Works,04/12/2020,"-213,053.56 "
https://opendatacommunities.org/doc/district-council/cheltenham ,Cheltenham Borough Council,Development costs - Monkscroft,14083070,45420,E.G. Carter & Co. Limited,C1107-CAH061,Building Works,04/12/2020,"213,053.56 "
https://opendatacommunities.org/doc/district-council/cheltenham ,Cheltenham Borough Council,Development costs - Monkscroft,14083505,45431,E.G. Carter & Co. Limited,C1107-CAH061,Building Works,18/12/2020,"-152,661.54 "
https://opendatacommunities.org/doc/district-council/cheltenham ,Cheltenham Borough Council,Development costs - Monkscroft,14083505,45431,E.G. Carter & Co. Limited,C1107-CAH061,Building Works,18/12/2020,"152,661.54 "
https://opendatacommunities.org/doc/district-council/cheltenham ,Cheltenham Borough Council,Development costs - Monkscroft,14083505,45431,E.G. Carter & Co. Limited,C1107-CAH061,Building Works,18/12/2020,"152,661.54 "
https://opendatacommunities.org/doc/district-council/cheltenham ,Cheltenham Borough Council,Parks & Gardens Operations,14083574,EA33763,Earth Anchors Limited,R4010-OPS001,Materials - Other Materials,23/12/2020,608.00 
https://opendatacommunities.org/doc/district-council/cheltenham ,Cheltenham Borough Council,Asbestos Management,14083082,11723,Environmental Management Solutions Limited,C1107-CAH012,Building Works,11/12/2020,"21,010.68 "
https://opendatacommunities.org/doc/district-council/cheltenham ,Cheltenham Borough Council,Asbestos Management,14083498,11814,Environmental Management Solutions Limited,C1107-CAH012,Building Works,18/12/2020,"19,352.00 "
https://opendatacommunities.org/doc/district-council/cheltenham ,Cheltenham Borough Council,Income and Expenditure on Investment Properties and Changes in Their Fair Value,14083029,015961870790 241120,E-on Energy,R2010-FIE040,R & M of Plant Lifts,11/12/2020,670.54 
https://opendatacommunities.org/doc/district-council/cheltenham ,Cheltenham Borough Council,Oakley Resource Centre,14083028,H17E7B8AD2,E-on Energy,R2100-COM101,Electricity,04/12/2020,"13,336.85 "
https://opendatacommunities.org/doc/district-council/cheltenham ,Cheltenham Borough Council,Oakley Resource Centre,14083359,H193914C31,E-on Energy,R2100-COM101,Electricity,18/12/2020,"1,123.30 "
https://opendatacommunities.org/doc/district-council/cheltenham ,Cheltenham Borough Council,Income and Expenditure on Investment Properties and Changes in Their Fair Value,14083330,H193B3BE12,E-on Energy,R2101-FIE040,Gas,11/12/2020,"2,138.10 "
https://opendatacommunities.org/doc/district-council/cheltenham ,Cheltenham Borough Council,Sustainability Measures,14083314,8045,Evolve Home Energy Solutions Limited,C1107-CAH032,Building Works,18/12/2020,540.00 
https://opendatacommunities.org/doc/district-council/cheltenham ,Cheltenham Borough Council,Development costs - Monkscroft School,14083290,90384003,Freeths LLP,C1004-CAH073,Legal Fees,11/12/2020,"1,107.75 "
https://opendatacommunities.org/doc/district-council/cheltenham ,Cheltenham Borough Council,Development costs - Monkscroft School,14083291,90388894,Freeths LLP,C1004-CAH073,Legal Fees,11/12/2020,"1,150.00 "
https://opendatacommunities.org/doc/district-council/cheltenham ,Cheltenham Borough Council,Sheltered Housing,14083582,STINV122092,Furniture Resource Centre Ltd,C1107-CAH014,Building Works,23/12/2020,"3,210.53 "
https://opendatacommunities.org/doc/district-council/cheltenham ,Cheltenham Borough Council,Sheltered Housing,14083581,STINV122790,Furniture Resource Centre Ltd,C1107-CAH014,Building Works,23/12/2020,"6,918.00 "
https://opendatacommunities.org/doc/district-council/cheltenham ,Cheltenham Borough Council,Sheltered Housing,14082628,29512,G & T Services (SW) Limited,C1107-CAH014,Building Works,18/12/2020,648.88 
https://opendatacommunities.org/doc/district-council/cheltenham ,Cheltenham Borough Council,Development costs - Pennine Road,14083168,G/013293,Gage-Tupper & Associates Ltd,C1111-CAH070,Clerk of Works,04/12/2020,825.00 
https://opendatacommunities.org/doc/district-council/cheltenham ,Cheltenham Borough Council,Trees,14082003,370,Gaskins Treework Specialists,R2070-PLP006,Tree Work,18/12/2020,"1,215.00 "
https://opendatacommunities.org/doc/district-council/cheltenham ,Cheltenham Borough Council,Cyber Business Park,14083289,435,GFirst LEP CIC,R4400-PLP105,Services - Professional Fees,11/12/2020,"4,954.61 "
https://opendatacommunities.org/doc/district-council/cheltenham ,Cheltenham Borough Council,Car Parks - Off Street Operations,14083203,55920,Glevum Security Limited,R4401-CPK001,Services - Fees and Charges,11/12/2020,725.20 
https://opendatacommunities.org/doc/district-council/cheltenham ,Cheltenham Borough Council,Homelessness,14083023,13370698,Gloucester City Council,R4429-HOM001,Services - other fees,04/12/2020,797.14 
https://opendatacommunities.org/doc/district-council/cheltenham ,Cheltenham Borough Council,Household Waste,14083076,1800592010,Gloucestershire County Council,R5005-WST001,TPP - Minor Contract Fees,04/12/2020,"4,000.00 "
https://opendatacommunities.org/doc/district-council/cheltenham ,Cheltenham Borough Council,Big Local Project,14083020,5604,Gloucestershire Rural Community Council,R6280-COM104,Grants,04/12/2020,"1,269.60 "
https://opendatacommunities.org/doc/district-council/cheltenham ,Cheltenham Borough Council,"Cemetery, Crematorium and Churchyards",14083376,1007979,Goldingham Contracts Limited,R2702-CCM001,Pest Control,18/12/2020,625.00 
https://opendatacommunities.org/doc/district-council/cheltenham ,Cheltenham Borough Council,Corporate Management,14083321,30043392,Grant Thornton UK LLP,R4430-COR001,Audit Fees,11/12/2020,"9,510.75 "
https://opendatacommunities.org/doc/district-council/cheltenham ,Cheltenham Borough Council,Sports & Open Spaces Operations,14083212,93703,"Grimshaw Kinnear Limited t/a Grimshaw Group, Grimshaw Sports & Nostalga Building Supplies",R4003-OPS002,Tools & Equipment - R & M,11/12/2020,"4,566.00 "
https://opendatacommunities.org/doc/district-council/cheltenham ,Cheltenham Borough Council,Income and Expenditure on Investment Properties and Changes in Their Fair Value,14083324,12054,H & W Facilities Management Limited,R2700-FIE040,Contract Cleaning,11/12/2020,572.87 
https://opendatacommunities.org/doc/district-council/cheltenham ,Cheltenham Borough Council,Sports & Open Spaces Operations,14083492,154187,Hanman Split Limited,R4000-OPS002,Equipment Purchase,18/12/2020,"1,125.00 "
https://opendatacommunities.org/doc/district-council/cheltenham ,Cheltenham Borough Council,Fire Protection,14083415,38051,Harmony Fire Ltd,C1107-CAH015,Building Works,18/12/2020,977.83 
https://opendatacommunities.org/doc/district-council/cheltenham ,Cheltenham Borough Council,Fire Protection,14082839,38061,Harmony Fire Ltd,C1107-CAH015,Building Works,18/12/2020,674.96 
https://opendatacommunities.org/doc/district-council/cheltenham ,Cheltenham Borough Council,Fire Protection,14083640,38496,Harmony Fire Ltd,C1107-CAH015,Building Works,23/12/2020,"2,024.88 "
https://opendatacommunities.org/doc/district-council/cheltenham ,Cheltenham Borough Council,Asbestos Management,14083523,38497,Harmony Fire Ltd,C1107-CAH012,Building Works,18/12/2020,674.96 
https://opendatacommunities.org/doc/district-council/cheltenham ,Cheltenham Borough Council,Asbestos Management,14083524,38498,Harmony Fire Ltd,C1107-CAH012,Building Works,18/12/2020,674.96 
https://opendatacommunities.org/doc/district-council/cheltenham ,Cheltenham Borough Council,Asbestos Management,14083525,38499,Harmony Fire Ltd,C1107-CAH012,Building Works,18/12/2020,674.96 
https://opendatacommunities.org/doc/district-council/cheltenham ,Cheltenham Borough Council,Asbestos Management,14083526,38500,Harmony Fire Ltd,C1107-CAH012,Building Works,18/12/2020,674.96 
https://opendatacommunities.org/doc/district-council/cheltenham ,Cheltenham Borough Council,Asbestos Management,14083527,38501,Harmony Fire Ltd,C1107-CAH012,Building Works,18/12/2020,674.96 
https://opendatacommunities.org/doc/district-council/cheltenham ,Cheltenham Borough Council,Asbestos Management,14083528,38502,Harmony Fire Ltd,C1107-CAH012,Building Works,18/12/2020,674.96 
https://opendatacommunities.org/doc/district-council/cheltenham ,Cheltenham Borough Council,Asbestos Management,14083529,38503,Harmony Fire Ltd,C1107-CAH012,Building Works,18/12/2020,674.96 
https://opendatacommunities.org/doc/district-council/cheltenham ,Cheltenham Borough Council,Asbestos Management,14083530,38504,Harmony Fire Ltd,C1107-CAH012,Building Works,18/12/2020,674.96 
https://opendatacommunities.org/doc/district-council/cheltenham ,Cheltenham Borough Council,Asbestos Management,14083531,38505,Harmony Fire Ltd,C1107-CAH012,Building Works,18/12/2020,674.96 
https://opendatacommunities.org/doc/district-council/cheltenham ,Cheltenham Borough Council,Asbestos Management,14083532,38506,Harmony Fire Ltd,C1107-CAH012,Building Works,18/12/2020,674.96 
https://opendatacommunities.org/doc/district-council/cheltenham ,Cheltenham Borough Council,Fire Protection,14083533,38507,Harmony Fire Ltd,C1107-CAH015,Building Works,18/12/2020,674.96 
https://opendatacommunities.org/doc/district-council/cheltenham ,Cheltenham Borough Council,Fire Protection,14083534,38508,Harmony Fire Ltd,C1107-CAH015,Building Works,18/12/2020,674.96 
https://opendatacommunities.org/doc/district-council/cheltenham ,Cheltenham Borough Council,Fire Protection,14083535,38509,Harmony Fire Ltd,C1107-CAH015,Building Works,18/12/2020,674.96 
https://opendatacommunities.org/doc/district-council/cheltenham ,Cheltenham Borough Council,Fire Protection,14083536,38510,Harmony Fire Ltd,C1107-CAH015,Building Works,18/12/2020,674.96 
https://opendatacommunities.org/doc/district-council/cheltenham ,Cheltenham Borough Council,Fire Protection,14083537,38511,Harmony Fire Ltd,C1107-CAH015,Building Works,18/12/2020,977.83 
https://opendatacommunities.org/doc/district-council/cheltenham ,Cheltenham Borough Council,Fire Protection,14083507,38512,Harmony Fire Ltd,C1107-CAH015,Building Works,18/12/2020,674.96 
https://opendatacommunities.org/doc/district-council/cheltenham ,Cheltenham Borough Council,Fire Protection,14083508,38513,Harmony Fire Ltd,C1107-CAH015,Building Works,18/12/2020,674.96 
https://opendatacommunities.org/doc/district-council/cheltenham ,Cheltenham Borough Council,Fire Protection,14083509,38514,Harmony Fire Ltd,C1107-CAH015,Building Works,18/12/2020,674.96 
https://opendatacommunities.org/doc/district-council/cheltenham ,Cheltenham Borough Council,Fire Protection,14083510,38515,Harmony Fire Ltd,C1107-CAH015,Building Works,18/12/2020,674.96 
https://opendatacommunities.org/doc/district-council/cheltenham ,Cheltenham Borough Council,Fire Protection,14083511,38516,Harmony Fire Ltd,C1107-CAH015,Building Works,18/12/2020,674.96 
https://opendatacommunities.org/doc/district-council/cheltenham ,Cheltenham Borough Council,Fire Protection,14083512,38517,Harmony Fire Ltd,C1107-CAH015,Building Works,18/12/2020,674.96 
https://opendatacommunities.org/doc/district-council/cheltenham ,Cheltenham Borough Council,Fire Protection,14083513,38518,Harmony Fire Ltd,C1107-CAH015,Building Works,18/12/2020,977.83 
https://opendatacommunities.org/doc/district-council/cheltenham ,Cheltenham Borough Council,Fire Protection,14083514,38519,Harmony Fire Ltd,C1107-CAH015,Building Works,18/12/2020,674.96 
https://opendatacommunities.org/doc/district-council/cheltenham ,Cheltenham Borough Council,Fire Protection,14083515,38520,Harmony Fire Ltd,C1107-CAH015,Building Works,18/12/2020,674.96 
https://opendatacommunities.org/doc/district-council/cheltenham ,Cheltenham Borough Council,Fire Protection,14083516,38521,Harmony Fire Ltd,C1107-CAH015,Building Works,18/12/2020,674.96 
https://opendatacommunities.org/doc/district-council/cheltenham ,Cheltenham Borough Council,Fire Protection,14083517,38522,Harmony Fire Ltd,C1107-CAH015,Building Works,18/12/2020,977.83 
https://opendatacommunities.org/doc/district-council/cheltenham ,Cheltenham Borough Council,Fire Protection,14083518,38523,Harmony Fire Ltd,C1107-CAH015,Building Works,18/12/2020,977.83 
https://opendatacommunities.org/doc/district-council/cheltenham ,Cheltenham Borough Council,Fire Protection,14083519,38524,Harmony Fire Ltd,C1107-CAH015,Building Works,18/12/2020,674.96 
https://opendatacommunities.org/doc/district-council/cheltenham ,Cheltenham Borough Council,Fire Protection,14083520,38525,Harmony Fire Ltd,C1107-CAH015,Building Works,18/12/2020,674.96 
https://opendatacommunities.org/doc/district-council/cheltenham ,Cheltenham Borough Council,Fire Protection,14083521,38526,Harmony Fire Ltd,C1107-CAH015,Building Works,18/12/2020,674.96 
https://opendatacommunities.org/doc/district-council/cheltenham ,Cheltenham Borough Council,Asbestos Management,14083522,38527,Harmony Fire Ltd,C1107-CAH012,Building Works,18/12/2020,674.96 
https://opendatacommunities.org/doc/district-council/cheltenham ,Cheltenham Borough Council,Fire Protection,14083651,38537,Harmony Fire Ltd,C1107-CAH015,Building Works,23/12/2020,674.96 
https://opendatacommunities.org/doc/district-council/cheltenham ,Cheltenham Borough Council,Accountancy,14083075,INV-0332,Harris Burns Ltd,R4411-SUP009,Consultancy Fees,04/12/2020,"3,794.92 "
https://opendatacommunities.org/doc/district-council/cheltenham ,Cheltenham Borough Council,New Heating Installations,14083652,174575,Hewer Facilities Management Limited,C1107-CAH009,Building Works,23/12/2020,"1,368.00 "
https://opendatacommunities.org/doc/district-council/cheltenham ,Cheltenham Borough Council,New Heating Installations,14083653,174576,Hewer Facilities Management Limited,C1107-CAH009,Building Works,23/12/2020,943.80 
https://opendatacommunities.org/doc/district-council/cheltenham ,Cheltenham Borough Council,New Heating Installations,14083654,174577,Hewer Facilities Management Limited,C1107-CAH009,Building Works,23/12/2020,"1,581.20 "
https://opendatacommunities.org/doc/district-council/cheltenham ,Cheltenham Borough Council,Burrows Improvement Project,14083361,IN11121,HWM Building Services Limited,C1105-CAP607,Design Services,23/12/2020,"3,493.50 "
https://opendatacommunities.org/doc/district-council/cheltenham ,Cheltenham Borough Council,Lift Refurbishment,14082926,24985,ILECS Limited,C1107-CAH011,Building Works,18/12/2020,"1,347.49 "
https://opendatacommunities.org/doc/district-council/cheltenham ,Cheltenham Borough Council,Lift Refurbishment,14083164,25254,ILECS Limited,C1107-CAH011,Building Works,11/12/2020,806.45 
https://opendatacommunities.org/doc/district-council/cheltenham ,Cheltenham Borough Council,Development costs - Pennine Road,14083204,IN024506,J Harper & Sons (Leominster) Limited,C1107-CAH070,Building Works,11/12/2020,"76,641.06 "
https://opendatacommunities.org/doc/district-council/cheltenham ,Cheltenham Borough Council,Development costs - Pennine Road,14083204,IN024506,J Harper & Sons (Leominster) Limited,C1107-CAH070,Building Works,11/12/2020,"76,641.06 "
https://opendatacommunities.org/doc/district-council/cheltenham ,Cheltenham Borough Council,Development costs - Pennine Road,14083204,IN024506,J Harper & Sons (Leominster) Limited,C1107-CAH070,Building Works,11/12/2020,"-76,641.06 "
https://opendatacommunities.org/doc/district-council/cheltenham ,Cheltenham Borough Council,Arle Road Nursery Operations,14083040,190410,James Coles & Sons Nurseries Limited,R4010-OPS101,Materials - Other Materials,11/12/2020,"2,526.50 "
https://opendatacommunities.org/doc/district-council/cheltenham ,Cheltenham Borough Council,Supervision and Management,14083401,RND301120/comb-20,John Gillman & Sons (Electrical) Limited (Gillmans Appliance),R4002-HRA110,Tools & Equipment - Lease/Rental,18/12/2020,"1,950.78 "
https://opendatacommunities.org/doc/district-council/cheltenham ,Cheltenham Borough Council,Car Parks - Off Street Operations,14083397,3546,John Ryde Commercial,R2200-CPK001,Rent,23/12/2020,"9,141.25 "
https://opendatacommunities.org/doc/district-council/cheltenham ,Cheltenham Borough Council,External Improvements,14083085,7000,Joyner P A Ltd,C1107-CAH003,Building Works,04/12/2020,"113,082.32 "
https://opendatacommunities.org/doc/district-council/cheltenham ,Cheltenham Borough Council,Option Appraisal Voids,14083309,23922,Kendall Kingscott Limited,C1107-CAH002,Building Works,18/12/2020,914.25 
https://opendatacommunities.org/doc/district-council/cheltenham ,Cheltenham Borough Council,Cyber Business Park,14083193,9041 001,Limbrick Studio Ltd,R4318-PLP105,Photography & Promotional Materials/Design,11/12/2020,"5,000.00 "
https://opendatacommunities.org/doc/district-council/cheltenham ,Cheltenham Borough Council,ICT,14082944,16003208,LinchPin Networks Limited,R4548-SUP005,IT - Cabling and Network,04/12/2020,988.50 
https://opendatacommunities.org/doc/district-council/cheltenham ,Cheltenham Borough Council,ICT,14082985,16003213,LinchPin Networks Limited,R4548-SUP005,IT - Cabling and Network,04/12/2020,988.50 
https://opendatacommunities.org/doc/district-council/cheltenham ,Cheltenham Borough Council,ICT,14083086,16003219,LinchPin Networks Limited,R4548-SUP005,IT - Cabling and Network,04/12/2020,"3,214.50 "
https://opendatacommunities.org/doc/district-council/cheltenham ,Cheltenham Borough Council,ICT,14083457,16003250,LinchPin Networks Limited,R4548-SUP005,IT - Cabling and Network,18/12/2020,988.50 
https://opendatacommunities.org/doc/district-council/cheltenham ,Cheltenham Borough Council,ICT,14083456,16003253,LinchPin Networks Limited,R4548-SUP005,IT - Cabling and Network,18/12/2020,673.50 
https://opendatacommunities.org/doc/district-council/cheltenham ,Cheltenham Borough Council,Burrows Improvement Project,14082955,LE250428,Link Engineering (Birmingham) Limited,C1005-CAP607,Surveyors Fees,04/12/2020,"3,450.00 "
https://opendatacommunities.org/doc/district-council/cheltenham ,Cheltenham Borough Council,Burrows Improvement Project,14083296,LE250462,Link Engineering (Birmingham) Limited,C1106-CAP607,Engineering Works,23/12/2020,"2,000.00 "
https://opendatacommunities.org/doc/district-council/cheltenham ,Cheltenham Borough Council,Sports & Open Spaces Operations,14083208,145859,Matta Products (UK) Limited,R4003-OPS002,Tools & Equipment - R & M,18/12/2020,"2,751.10 "
https://opendatacommunities.org/doc/district-council/cheltenham ,Cheltenham Borough Council,Sports & Open Spaces Operations,14083208,145859,Matta Products (UK) Limited,R4003-OPS002,Tools & Equipment - R & M,18/12/2020,"-2,751.10 "
https://opendatacommunities.org/doc/district-council/cheltenham ,Cheltenham Borough Council,Sports & Open Spaces Operations,14083208,145859,Matta Products (UK) Limited,R4003-OPS002,Tools & Equipment - R & M,18/12/2020,"2,751.10 "
https://opendatacommunities.org/doc/district-council/cheltenham ,Cheltenham Borough Council,Tourist/Visitor Information Centre/ Marketing Cheltenham wef 2019/20,14083006,191120,Mikal Ludlow Photography,R4400-TOU002,Services - Professional Fees,11/12/2020,600.00 
https://opendatacommunities.org/doc/district-council/cheltenham ,Cheltenham Borough Council,Sports & Open Spaces Operations,14083191,2577,MJW Fabrications Ltd,R4003-OPS002,Tools & Equipment - R & M,11/12/2020,"-5,070.00 "
https://opendatacommunities.org/doc/district-council/cheltenham ,Cheltenham Borough Council,Sports & Open Spaces Operations,14083191,2577,MJW Fabrications Ltd,R4003-OPS002,Tools & Equipment - R & M,11/12/2020,"5,070.00 "
https://opendatacommunities.org/doc/district-council/cheltenham ,Cheltenham Borough Council,Sports & Open Spaces Operations,14083191,2577,MJW Fabrications Ltd,R4003-OPS002,Tools & Equipment - R & M,11/12/2020,"5,070.00 "
https://opendatacommunities.org/doc/district-council/cheltenham ,Cheltenham Borough Council,Repairs and Maintenance,14083228,47910,Morgan Lambert Limited,R2040-HRA100,R & M of Build Central Heating,18/12/2020,"1,496.00 "
https://opendatacommunities.org/doc/district-council/cheltenham ,Cheltenham Borough Council,"Cemetery, Crematorium and Churchyards",14083546,301120,Mr J Sureda,R4401-CCM001,Services - Fees and Charges,23/12/2020,780.60 
https://opendatacommunities.org/doc/district-council/cheltenham ,Cheltenham Borough Council,Sports & Open Spaces Operations,14083195,19/01,Mumkin Operational Services,R4003-OPS002,Tools & Equipment - R & M,11/12/2020,"2,424.00 "
https://opendatacommunities.org/doc/district-council/cheltenham ,Cheltenham Borough Council,Repairs and Maintenance,14083216,R10346,Nationwide Property Assistance Ltd T/as NPA 24/7,R2012-HRA100,R & M of Build Standby and Call Out,18/12/2020,868.87 
https://opendatacommunities.org/doc/district-council/cheltenham ,Cheltenham Borough Council,Repairs and Maintenance,14083217,R10375,Nationwide Property Assistance Ltd T/as NPA 24/7,R2012-HRA100,R & M of Build Standby and Call Out,18/12/2020,868.11 
https://opendatacommunities.org/doc/district-council/cheltenham ,Cheltenham Borough Council,Repairs and Maintenance,14083325,R10392,Nationwide Property Assistance Ltd T/as NPA 24/7,R2012-HRA100,R & M of Build Standby and Call Out,18/12/2020,868.11 
https://opendatacommunities.org/doc/district-council/cheltenham ,Cheltenham Borough Council,Window & Door Renewals,14083237,20110167,Nationwide Windows Limited,C1107-CAH017,Building Works,18/12/2020,"7,511.78 "
https://opendatacommunities.org/doc/district-council/cheltenham ,Cheltenham Borough Council,Window & Door Renewals,14083239,20110168,Nationwide Windows Limited,C1107-CAH017,Building Works,11/12/2020,"151,639.43 "
https://opendatacommunities.org/doc/district-council/cheltenham ,Cheltenham Borough Council,Window & Door Renewals,14083238,20110169,Nationwide Windows Limited,C1107-CAH017,Building Works,18/12/2020,"7,359.48 "
https://opendatacommunities.org/doc/district-council/cheltenham ,Cheltenham Borough Council,High Street Public Realm Improvements,14083446,INV-0128,Neo Traffic Data Services,C1105-CAP205,Design Services,18/12/2020,"1,200.00 "
https://opendatacommunities.org/doc/district-council/cheltenham ,Cheltenham Borough Council,Car Parks - Off Street R&M,14083372,224091,Newport & Hereford Drainage Ltd t/a Metro Rod,R2083-CPK101,R&M of Build - Routine,18/12/2020,"3,040.00 "
https://opendatacommunities.org/doc/district-council/cheltenham ,Cheltenham Borough Council,Fire Protection,14082961,13818,NKS Contracts (Central) Limited,C1107-CAH015,Building Works,04/12/2020,"1,588.66 "
https://opendatacommunities.org/doc/district-council/cheltenham ,Cheltenham Borough Council,Fire Protection,14082962,13820,NKS Contracts (Central) Limited,C1107-CAH015,Building Works,04/12/2020,"1,588.66 "
https://opendatacommunities.org/doc/district-council/cheltenham ,Cheltenham Borough Council,Cheltenham Municipal Offices,14083176,692-2195,Oakleaf Surveying Ltd,R4401-ADB101,Services - Fees and Charges,11/12/2020,"21,185.00 "
https://opendatacommunities.org/doc/district-council/cheltenham ,Cheltenham Borough Council,"Cemetery, Crematorium and Churchyards",14083225,57181,Oconnor Construction Company Ltd,R3201-CCM001,Hire of Plant,18/12/2020,967.00 
https://opendatacommunities.org/doc/district-council/cheltenham ,Cheltenham Borough Council,Cyber Business Park,14083350,1157,OggaDoon Ltd,R4014-PLP105,Marketing,11/12/2020,"8,400.00 "
https://opendatacommunities.org/doc/district-council/cheltenham ,Cheltenham Borough Council,Cyber Business Park,14083675,1170,OggaDoon Ltd,R4014-PLP105,Marketing,23/12/2020,"2,100.00 "
https://opendatacommunities.org/doc/district-council/cheltenham ,Cheltenham Borough Council,Cyber Business Park,14083084,20080338,Omnigenix,R4411-PLP105,Consultancy Fees,04/12/2020,"7,500.00 "
https://opendatacommunities.org/doc/district-council/cheltenham ,Cheltenham Borough Council,Art Gallery & Museum Repairs & Maintenance,14083058,70136,P & R Heating Limited,R2080-CUL117,Mechanical Services,11/12/2020,651.00 
https://opendatacommunities.org/doc/district-council/cheltenham ,Cheltenham Borough Council,Cemetery & Crematorium Repairs & Maintenance,14083371,70248,P & R Heating Limited,R2080-CCM111,Mechanical Services,18/12/2020,619.00 
https://opendatacommunities.org/doc/district-council/cheltenham ,Cheltenham Borough Council,Recreation Centre Repairs & Maintenance,14083696,70337,P & R Heating Limited,R2080-REC111,Mechanical Services,23/12/2020,876.00 
https://opendatacommunities.org/doc/district-council/cheltenham ,Cheltenham Borough Council,Car Parks - Off Street Operations,14083480,4316,Paybyphone Limited,R4401-CPK001,Services - Fees and Charges,23/12/2020,"1,256.25 "
https://opendatacommunities.org/doc/district-council/cheltenham ,Cheltenham Borough Council,Corporate Management,14083197,624350,Penna plc,R4400-COR001,Services - Professional Fees,11/12/2020,"3,580.00 "
https://opendatacommunities.org/doc/district-council/cheltenham ,Cheltenham Borough Council,Corporate Management,14083198,624351,Penna plc,R4400-COR001,Services - Professional Fees,11/12/2020,"2,998.00 "
https://opendatacommunities.org/doc/district-council/cheltenham ,Cheltenham Borough Council,Waste & Recycling - Marketing & Management,14083436,OP/I883616,Phoenix Software Limited,R4531-RYC007,IT - Purchase of Software,18/12/2020,688.41 
https://opendatacommunities.org/doc/district-council/cheltenham ,Cheltenham Borough Council,Publica Business Support Contract,14083465,85002876,Publica Group (Support) Limited,R5500-SUP106,TPP - Publica Contract,18/12/2020,"114,142.61 "
https://opendatacommunities.org/doc/district-council/cheltenham ,Cheltenham Borough Council,Sports & Open Spaces Repairs & Maintenance,14083580,30990,R F Gardiner Limited T/as Gardiners,R2008-OPS122,R & M of Build - Reactive Repairs,23/12/2020,"9,049.00 "
https://opendatacommunities.org/doc/district-council/cheltenham ,Cheltenham Borough Council,Parks & Gardens Repairs & Maintenance,14083186,31249,R F Gardiner Limited T/as Gardiners,R2004-OPS121,R & M of Build Programmed,11/12/2020,"10,256.00 "
https://opendatacommunities.org/doc/district-council/cheltenham ,Cheltenham Borough Council,Recreation Centre Repairs & Maintenance,14083181,31270,R F Gardiner Limited T/as Gardiners,R2004-REC111,R & M of Build Programmed,11/12/2020,"6,940.80 "
https://opendatacommunities.org/doc/district-council/cheltenham ,Cheltenham Borough Council,Recreation Centre Repairs & Maintenance,14083190,31279,R F Gardiner Limited T/as Gardiners,R2004-REC111,R & M of Build Programmed,11/12/2020,"1,704.00 "
https://opendatacommunities.org/doc/district-council/cheltenham ,Cheltenham Borough Council,Cheltenham Depot,14083578,31293,R F Gardiner Limited T/as Gardiners,R2078-ADB103,R&M of Build - external structures,23/12/2020,"2,161.92 "
https://opendatacommunities.org/doc/district-council/cheltenham ,Cheltenham Borough Council,Pittville Pump Room Repairs & Maintenance,14083407,31305,R F Gardiner Limited T/as Gardiners,R2008-CUL113,R & M of Build - Reactive Repairs,18/12/2020,755.08 
https://opendatacommunities.org/doc/district-council/cheltenham ,Cheltenham Borough Council,Recreation Centre Repairs & Maintenance,14083431,31307,R F Gardiner Limited T/as Gardiners,R2008-REC111,R & M of Build - Reactive Repairs,18/12/2020,"1,328.80 "
https://opendatacommunities.org/doc/district-council/cheltenham ,Cheltenham Borough Council,Sports & Open Spaces Repairs & Maintenance,14083434,31308,R F Gardiner Limited T/as Gardiners,R2008-OPS122,R & M of Build - Reactive Repairs,18/12/2020,606.96 
https://opendatacommunities.org/doc/district-council/cheltenham ,Cheltenham Borough Council,Recreation Centre Repairs & Maintenance,14083405,31309,R F Gardiner Limited T/as Gardiners,R2008-REC111,R & M of Build - Reactive Repairs,18/12/2020,692.48 
https://opendatacommunities.org/doc/district-council/cheltenham ,Cheltenham Borough Council,Cheltenham Depot,14083429,31313,R F Gardiner Limited T/as Gardiners,R2008-ADB103,R & M of Build - Reactive Repairs,18/12/2020,831.32 
https://opendatacommunities.org/doc/district-council/cheltenham ,Cheltenham Borough Council,Cheltenham Municipal Offices,14083414,31317,R F Gardiner Limited T/as Gardiners,R2008-ADB101,R & M of Build - Reactive Repairs,18/12/2020,588.50 
https://opendatacommunities.org/doc/district-council/cheltenham ,Cheltenham Borough Council,Car Parks - Off Street R&M,14083428,31319,R F Gardiner Limited T/as Gardiners,R2008-CPK101,R & M of Build - Reactive Repairs,18/12/2020,595.08 
https://opendatacommunities.org/doc/district-council/cheltenham ,Cheltenham Borough Council,Recreation Centre Repairs & Maintenance,14083430,31325,R F Gardiner Limited T/as Gardiners,R2008-REC111,R & M of Build - Reactive Repairs,18/12/2020,939.44 
https://opendatacommunities.org/doc/district-council/cheltenham ,Cheltenham Borough Council,Development Control - Applications,14082963,5389606,Reach Publishing Services Ltd,R4317-DEV001,Non Staff Advertising,04/12/2020,659.60 
https://opendatacommunities.org/doc/district-council/cheltenham ,Cheltenham Borough Council,Development Control - Applications,14083586,5413509,Reach Publishing Services Ltd,R4317-DEV001,Non Staff Advertising,23/12/2020,582.00 
https://opendatacommunities.org/doc/district-council/cheltenham ,Cheltenham Borough Council,Asbestos Management,14083610,6637,Rex Bishop & Son Limited,C1107-CAH012,Building Works,23/12/2020,"8,125.00 "
https://opendatacommunities.org/doc/district-council/cheltenham ,Cheltenham Borough Council,Printing Services,14082828,101713961,Ricoh UK Limited,R4300-SUP022,Printing - Services,04/12/2020,"4,963.41 "
https://opendatacommunities.org/doc/district-council/cheltenham ,Cheltenham Borough Council,Printing Services,14083322,101722976,Ricoh UK Limited,R4300-SUP022,Printing - Services,18/12/2020,693.87 
https://opendatacommunities.org/doc/district-council/cheltenham ,Cheltenham Borough Council,Printing Services,14083323,101724018,Ricoh UK Limited,R4300-SUP022,Printing - Services,18/12/2020,763.11 
https://opendatacommunities.org/doc/district-council/cheltenham ,Cheltenham Borough Council,Burrows Improvement Project,14083297,12733,Roberts Limbrick Ltd,C1113-CAP607,Architect Fees,23/12/2020,"7,486.50 "
https://opendatacommunities.org/doc/district-council/cheltenham ,Cheltenham Borough Council,Registration of Electors,14082903,9061904329,Royal Mail (Billing),R4521-ELE001,Postages - franking machine,04/12/2020,"1,290.06 "
https://opendatacommunities.org/doc/district-council/cheltenham ,Cheltenham Borough Council,Council Tax Collection,14082903,9061904329,Royal Mail (Billing),R4521-LTC001,Postages - franking machine,04/12/2020,932.90 
https://opendatacommunities.org/doc/district-council/cheltenham ,Cheltenham Borough Council,Development Control - Applications,14082972,20-386-Inv001,Ryder Landscape Consultants Limited,R4400-DEV001,Services - Professional Fees,04/12/2020,"2,850.00 "
https://opendatacommunities.org/doc/district-council/cheltenham ,Cheltenham Borough Council,Cheltenham Municipal Offices,14082988,INV-00227,Sang Energy Consulting Ltd,R4401-ADB101,Services - Fees and Charges,04/12/2020,"8,900.00 "
https://opendatacommunities.org/doc/district-council/cheltenham ,Cheltenham Borough Council,Repairs and Maintenance,14083318,2184,SAS EPC,R2018-HRA100,R & M of Build Voids Energy Performance Certificates,18/12/2020,900.00 
https://opendatacommunities.org/doc/district-council/cheltenham ,Cheltenham Borough Council,Income and Expenditure on Investment Properties and Changes in Their Fair Value,14083155,D125400,Savills UK Main Client Account,R4401-FIE040,Services - Fees and Charges,11/12/2020,752.00 
https://opendatacommunities.org/doc/district-council/cheltenham ,Cheltenham Borough Council,Income and Expenditure on Investment Properties and Changes in Their Fair Value,14083133,D125404,Savills UK Main Client Account,R4401-FIE040,Services - Fees and Charges,11/12/2020,"3,598.00 "
https://opendatacommunities.org/doc/district-council/cheltenham ,Cheltenham Borough Council,Income and Expenditure on Investment Properties and Changes in Their Fair Value,14083154,D161402,Savills UK Main Client Account,R4401-FIE040,Services - Fees and Charges,11/12/2020,"6,507.00 "
https://opendatacommunities.org/doc/district-council/cheltenham ,Cheltenham Borough Council,Income and Expenditure on Investment Properties and Changes in Their Fair Value,14083151,D161403,Savills UK Main Client Account,R4401-FIE040,Services - Fees and Charges,11/12/2020,"1,501.00 "
https://opendatacommunities.org/doc/district-council/cheltenham ,Cheltenham Borough Council,Income and Expenditure on Investment Properties and Changes in Their Fair Value,14083135,D161404,Savills UK Main Client Account,R4401-FIE040,Services - Fees and Charges,11/12/2020,"2,300.00 "
https://opendatacommunities.org/doc/district-council/cheltenham ,Cheltenham Borough Council,Income and Expenditure on Investment Properties and Changes in Their Fair Value,14083145,D173252,Savills UK Main Client Account,R2100-FIE040,Electricity,11/12/2020,"2,305.50 "
https://opendatacommunities.org/doc/district-council/cheltenham ,Cheltenham Borough Council,Income and Expenditure on Investment Properties and Changes in Their Fair Value,14083147,D173334,Savills UK Main Client Account,R2100-FIE040,Electricity,11/12/2020,"2,204.90 "
https://opendatacommunities.org/doc/district-council/cheltenham ,Cheltenham Borough Council,Income and Expenditure on Investment Properties and Changes in Their Fair Value,14083150,D187832,Savills UK Main Client Account,R2100-FIE040,Electricity,11/12/2020,"2,037.95 "
https://opendatacommunities.org/doc/district-council/cheltenham ,Cheltenham Borough Council,Income and Expenditure on Investment Properties and Changes in Their Fair Value,14083153,D189303,Savills UK Main Client Account,R4401-FIE040,Services - Fees and Charges,11/12/2020,"3,124.19 "
https://opendatacommunities.org/doc/district-council/cheltenham ,Cheltenham Borough Council,Income and Expenditure on Investment Properties and Changes in Their Fair Value,14083132,D189304,Savills UK Main Client Account,R4401-FIE040,Services - Fees and Charges,11/12/2020,"1,102.21 "
https://opendatacommunities.org/doc/district-council/cheltenham ,Cheltenham Borough Council,Income and Expenditure on Investment Properties and Changes in Their Fair Value,14083144,D189305,Savills UK Main Client Account,R4401-FIE040,Services - Fees and Charges,11/12/2020,"3,345.20 "
https://opendatacommunities.org/doc/district-council/cheltenham ,Cheltenham Borough Council,Cheltenham Municipal Offices,14083222,PSI118779,Securitas Security Services (UK) Ltd,R2008-ADB101,R & M of Build - Reactive Repairs,11/12/2020,"1,593.31 "
https://opendatacommunities.org/doc/district-council/cheltenham ,Cheltenham Borough Council,Cheltenham Municipal Offices,14083396,PSI118779,Securitas Security Services Ltd,R2705-ADB101,Security Systems,18/12/2020,"1,593.31 "
https://opendatacommunities.org/doc/district-council/cheltenham ,Cheltenham Borough Council,Cheltenham Depot,14083585,S-SIN1198465,Securitas Security Services Ltd,R2705-ADB103,Security Systems,23/12/2020,"1,583.33 "
https://opendatacommunities.org/doc/district-council/cheltenham ,Cheltenham Borough Council,"Rents, Rates, Taxes and Other Charges",14083540,WATER REDACTED,Severn Trent Water,R2400-HRA120,Water Services - Unmetered,23/12/2020,885.35 
https://opendatacommunities.org/doc/district-council/cheltenham ,Cheltenham Borough Council,Waste & Recycling - Marketing & Management,14083079,182406,Severnprint Limited,R4401-RYC007,Services - Fees and Charges,04/12/2020,"1,785.00 "
https://opendatacommunities.org/doc/district-council/cheltenham ,Cheltenham Borough Council,Waste & Recycling - Marketing & Management,14083080,182407,Severnprint Limited,R4401-RYC007,Services - Fees and Charges,04/12/2020,689.00 
https://opendatacommunities.org/doc/district-council/cheltenham ,Cheltenham Borough Council,"Paths, Fences & Walls",14082959,51628,Snape Contracting Services Limited,C1107-CAH021,Building Works,23/12/2020,"2,713.93 "
https://opendatacommunities.org/doc/district-council/cheltenham ,Cheltenham Borough Council,"Paths, Fences & Walls",14082956,51629,Snape Contracting Services Limited,C1107-CAH021,Building Works,11/12/2020,"1,059.76 "
https://opendatacommunities.org/doc/district-council/cheltenham ,Cheltenham Borough Council,"Paths, Fences & Walls",14082957,51631,Snape Contracting Services Limited,C1107-CAH021,Building Works,23/12/2020,"2,029.02 "
https://opendatacommunities.org/doc/district-council/cheltenham ,Cheltenham Borough Council,"Paths, Fences & Walls",14082958,51632,Snape Contracting Services Limited,C1107-CAH021,Building Works,23/12/2020,"2,799.34 "
https://opendatacommunities.org/doc/district-council/cheltenham ,Cheltenham Borough Council,"Paths, Fences & Walls",14083134,54133/54142,Snape Contracting Services Limited,C1107-CAH021,Building Works,04/12/2020,"34,708.51 "
https://opendatacommunities.org/doc/district-council/cheltenham ,Cheltenham Borough Council,Bulking Facility,14083088,45443,South West Wood Products Limited,R2703-RYC008,Waste Management,04/12/2020,"3,057.60 "
https://opendatacommunities.org/doc/district-council/cheltenham ,Cheltenham Borough Council,Bulking Facility,14083089,45584,South West Wood Products Limited,R2703-RYC008,Waste Management,04/12/2020,654.72 
https://opendatacommunities.org/doc/district-council/cheltenham ,Cheltenham Borough Council,Bulking Facility,14083087,45885,South West Wood Products Limited,R2703-RYC008,Waste Management,04/12/2020,840.00 
https://opendatacommunities.org/doc/district-council/cheltenham ,Cheltenham Borough Council,Bulking Facility,14083491,46494,South West Wood Products Limited,R2703-RYC008,Waste Management,18/12/2020,"3,506.88 "
https://opendatacommunities.org/doc/district-council/cheltenham ,Cheltenham Borough Council,Bulking Facility,14083363,46549,South West Wood Products Limited,R2703-RYC008,Waste Management,18/12/2020,"2,680.32 "
https://opendatacommunities.org/doc/district-council/cheltenham ,Cheltenham Borough Council,"Cemetery, Crematorium and Churchyards",14083173,SI-2628841,Spaldings Limited,R4000-CCM001,Equipment Purchase,11/12/2020,635.00 
https://opendatacommunities.org/doc/district-council/cheltenham ,Cheltenham Borough Council,Cyber Business Park,14083270,1392,Squashed Robot Films Ltd,R4318-PLP105,Photography & Promotional Materials/Design,11/12/2020,"2,375.00 "
https://opendatacommunities.org/doc/district-council/cheltenham ,Cheltenham Borough Council,Cyber Business Park,14083192,1393,Squashed Robot Films Ltd,R4318-PLP105,Photography & Promotional Materials/Design,11/12/2020,"1,870.00 "
https://opendatacommunities.org/doc/district-council/cheltenham ,Cheltenham Borough Council,Economic Development,14082521,1397,Squashed Robot Films Ltd,R4014-ECD001,Marketing,04/12/2020,"2,425.00 "
https://opendatacommunities.org/doc/district-council/cheltenham ,Cheltenham Borough Council,Allotments,14082987,INV.1821,Stokes & Sons Security Limited,R4010-OPS004,Materials - Other Materials,04/12/2020,715.00 
https://opendatacommunities.org/doc/district-council/cheltenham ,Cheltenham Borough Council,Corona Virus,14083158,52587,Straight Manufacturing Ltd,R4000-COV019,Equipment Purchase,04/12/2020,"19,230.00 "
https://opendatacommunities.org/doc/district-council/cheltenham ,Cheltenham Borough Council,Sports & Open Spaces Operations,14083552,5991,Sutcliffe Play South West Limited,R4000-OPS002,Equipment Purchase,23/12/2020,"1,256.00 "
https://opendatacommunities.org/doc/district-council/cheltenham ,Cheltenham Borough Council,Big Local Project,14083044,SWS102031,SW Surveys Ltd,R6280-COM104,Grants,04/12/2020,970.00 
https://opendatacommunities.org/doc/district-council/cheltenham ,Cheltenham Borough Council,Development Costs - S106 Prestbury,14082966,DEBT107972,Tewkesbury Borough Council,C1004-CAH080,Legal Fees,04/12/2020,"2,500.00 "
https://opendatacommunities.org/doc/district-council/cheltenham ,Cheltenham Borough Council,Legal,14082991,DEBT107979,Tewkesbury Borough Council,R4401-SUP004,Services - Fees and Charges,04/12/2020,"156,711.71 "
https://opendatacommunities.org/doc/district-council/cheltenham ,Cheltenham Borough Council,Car Parks - Off Street Operations,14083099,DEBT107982,Tewkesbury Borough Council,R4300-CPK001,Printing - Services,18/12/2020,582.00 
https://opendatacommunities.org/doc/district-council/cheltenham ,Cheltenham Borough Council,Development Costs - S106 Brockhampton,14083342,DEBT107993,Tewkesbury Borough Council,C1004-CAH081,Legal Fees,22/12/2020,876.00 
https://opendatacommunities.org/doc/district-council/cheltenham ,Cheltenham Borough Council,Gloucestershire Airport,14083461,DEBT108005,Tewkesbury Borough Council,R4401-AIR101,Services - Fees and Charges,18/12/2020,"10,750.00 "
https://opendatacommunities.org/doc/district-council/cheltenham ,Cheltenham Borough Council,Phase 3 Development,14083664,DEBT108013,Tewkesbury Borough Council,C1004-CAH039,Legal Fees,23/12/2020,819.64 
https://opendatacommunities.org/doc/district-council/cheltenham ,Cheltenham Borough Council,Cultural - Service Management and Support Services,14083175,70074233,The Cheltenham Trust,R5001-CSM001,TPP - Major External Contractors,04/12/2020,"9,054.00 "
https://opendatacommunities.org/doc/district-council/cheltenham ,Cheltenham Borough Council,Cultural - Service Management and Support Services,14083655,70074485,The Cheltenham Trust,R5001-CSM001,TPP - Major External Contractors,23/12/2020,"67,606.75 "
https://opendatacommunities.org/doc/district-council/cheltenham ,Cheltenham Borough Council,Community Alarms,14082938,106044,The Key Safe Company,R4000-SPP002,Equipment Purchase,04/12/2020,"1,245.99 "
https://opendatacommunities.org/doc/district-council/cheltenham ,Cheltenham Borough Council,Adaptations for the Disabled (CBC),14083329,18/00114/DMTLA FINAL,The Surveying Practice - Client Account,C1107-CAH028,Building Works,11/12/2020,"15,762.00 "
https://opendatacommunities.org/doc/district-council/cheltenham ,Cheltenham Borough Council,Disabled Facility Grants,14083328,19/00070/DDTLA FINAL,The Surveying Practice - Client Account,C5000-CAP221,Grants,11/12/2020,"17,366.80 "
https://opendatacommunities.org/doc/district-council/cheltenham ,Cheltenham Borough Council,Adaptations for the Disabled (CBC),14083327,19/00088/DMTLA FINAL,The Surveying Practice - Client Account,C1107-CAH028,Building Works,11/12/2020,"18,689.70 "
https://opendatacommunities.org/doc/district-council/cheltenham ,Cheltenham Borough Council,Adaptations for the Disabled (CBC),14083573,20/00003/DMTLA INTERIM NO 1,The Surveying Practice - Client Account,C1107-CAH028,Building Works,23/12/2020,"20,000.00 "
https://opendatacommunities.org/doc/district-council/cheltenham ,Cheltenham Borough Council,Adaptations for the Disabled (CBC),14083567,20/00030/DMTLA FINAL,The Surveying Practice - Client Account,C1107-CAH028,Building Works,23/12/2020,"8,024.45 "
https://opendatacommunities.org/doc/district-council/cheltenham ,Cheltenham Borough Council,Disabled Facility Grants,14083281,20/00038/DMOOC INTERIM NO 1,The Surveying Practice - Client Account,C5000-CAP221,Grants,11/12/2020,"7,738.00 "
https://opendatacommunities.org/doc/district-council/cheltenham ,Cheltenham Borough Council,Adaptations for the Disabled (CBC),14083214,20/00047/DMTLA FINAL,The Surveying Practice - Client Account,C1107-CAH028,Building Works,11/12/2020,"6,648.83 "
https://opendatacommunities.org/doc/district-council/cheltenham ,Cheltenham Borough Council,High Street re-opening,14083494,INV-8220,The Ubiquity Group Ltd,R4014-COV020,Marketing,18/12/2020,"3,000.00 "
https://opendatacommunities.org/doc/district-council/cheltenham ,Cheltenham Borough Council,Tourist/Visitor Information Centre/ Marketing Cheltenham wef 2019/20,14083036,7607,Third Floor Design Limited,R4014-TOU002,Marketing,11/12/2020,"2,475.00 "
https://opendatacommunities.org/doc/district-council/cheltenham ,Cheltenham Borough Council,Car Parks - Off Street Operations,14083583,CIUK21003617,ThyssenKrupp Elevator UK Ltd,R2010-CPK001,R & M of Plant Lifts,23/12/2020,"1,199.10 "
https://opendatacommunities.org/doc/district-council/cheltenham ,Cheltenham Borough Council,Car Parks - Off Street Operations,14083584,CIUK21003618,ThyssenKrupp Elevator UK Ltd,R2010-CPK001,R & M of Plant Lifts,23/12/2020,"1,780.62 "
https://opendatacommunities.org/doc/district-council/cheltenham ,Cheltenham Borough Council,Human Resources,14083161,3357,Tim Kidson & Associates,R4411-SUP003,Consultancy Fees,04/12/2020,900.00 
https://opendatacommunities.org/doc/district-council/cheltenham ,Cheltenham Borough Council,Vehicles & recycling equipment,14082064,YF 802448,Toyota GB Plc,C2000-CAP301,Acquisition of Vehicles,04/12/2020,"24,186.60 "
https://opendatacommunities.org/doc/district-council/cheltenham ,Cheltenham Borough Council,Cyber Business Park,14082935,11055,Transport Planning Association Ltd,R4411-PLP105,Consultancy Fees,04/12/2020,"4,427.12 "
https://opendatacommunities.org/doc/district-council/cheltenham ,Cheltenham Borough Council,Cyber Business Park,14083303,11152,Transport Planning Association Ltd,R4411-PLP105,Consultancy Fees,11/12/2020,"2,670.21 "
https://opendatacommunities.org/doc/district-council/cheltenham ,Cheltenham Borough Council,"Cemetery, Crematorium and Churchyards",14082982,3001 BUH447,Travis Perkins Trading Co. Limited,R4026-CCM001,Operational Materials,04/12/2020,"1,301.39 "
https://opendatacommunities.org/doc/district-council/cheltenham ,Cheltenham Borough Council,"Cemetery, Crematorium and Churchyards",14083265,3001BUJ603,Travis Perkins Trading Co. Limited,R4026-CCM001,Operational Materials,18/12/2020,665.00 
https://opendatacommunities.org/doc/district-council/cheltenham ,Cheltenham Borough Council,Cyber Business Park,14082954,11-113363,Trowers & Hamlins LLP,R4411-PLP105,Consultancy Fees,04/12/2020,"11,866.23 "
https://opendatacommunities.org/doc/district-council/cheltenham ,Cheltenham Borough Council,Household Waste,14083658,60038663,Ubico Limited,R5001-WST001,TPP - Major External Contractors,23/12/2020,"746,798.91 "
https://opendatacommunities.org/doc/district-council/cheltenham ,Cheltenham Borough Council,Licensing,14082853,22153,VIP-System Limited,R4000-REG002,Equipment Purchase,18/12/2020,"1,885.08 "
https://opendatacommunities.org/doc/district-council/cheltenham ,Cheltenham Borough Council,"Cemetery, Crematorium and Churchyards",14083482,20-11-Cheltenham,Vivedia Limited,R4401-CCM001,Services - Fees and Charges,18/12/2020,"3,150.00 "
https://opendatacommunities.org/doc/district-council/cheltenham ,Cheltenham Borough Council,"Cemetery, Crematorium and Churchyards",14083378,INV-6125,Vivedia Limited,R4401-CCM001,Services - Fees and Charges,18/12/2020,"9,540.00 "
https://opendatacommunities.org/doc/district-council/cheltenham ,Cheltenham Borough Council,Cyber Business Park,14083045,51721,"Vivid Resourcing, a division of g2V Recruitment Group Limited",R4400-PLP105,Services - Professional Fees,04/12/2020,"2,785.00 "
https://opendatacommunities.org/doc/district-council/cheltenham ,Cheltenham Borough Council,Cyber Business Park,14082928,52433,"Vivid Resourcing, a division of g2V Recruitment Group Limited",R4400-PLP105,Services - Professional Fees,04/12/2020,"2,785.00 "
https://opendatacommunities.org/doc/district-council/cheltenham ,Cheltenham Borough Council,Cyber Business Park,14083046,52655,"Vivid Resourcing, a division of g2V Recruitment Group Limited",R4400-PLP105,Services - Professional Fees,04/12/2020,"2,785.00 "
https://opendatacommunities.org/doc/district-council/cheltenham ,Cheltenham Borough Council,Cyber Business Park,14083245,52924,"Vivid Resourcing, a division of g2V Recruitment Group Limited",R4400-PLP105,Services - Professional Fees,11/12/2020,"2,785.00 "
https://opendatacommunities.org/doc/district-council/cheltenham ,Cheltenham Borough Council,Cyber Business Park,14083391,53227,"Vivid Resourcing, a division of g2V Recruitment Group Limited",R4400-PLP105,Services - Professional Fees,18/12/2020,"2,785.00 "
https://opendatacommunities.org/doc/district-council/cheltenham ,Cheltenham Borough Council,Supervision and Management,14083559,96561768,Vodafone Limited,R4507-HRA110,Comms - Mobile Telephones,23/12/2020,"2,734.69 "
https://opendatacommunities.org/doc/district-council/cheltenham ,Cheltenham Borough Council,Income and Expenditure on Investment Properties and Changes in Their Fair Value,14083643,4156,Water Hygiene Centre,R2004-FIE040,R & M of Build Programmed,23/12/2020,"3,945.00 "
https://opendatacommunities.org/doc/district-council/cheltenham ,Cheltenham Borough Council,Income and Expenditure on Investment Properties and Changes in Their Fair Value,14083642,4157,Water Hygiene Centre,R2004-FIE040,R & M of Build Programmed,23/12/2020,"4,690.00 "
https://opendatacommunities.org/doc/district-council/cheltenham ,Cheltenham Borough Council,Structural / Damp Works,14083454,4751,Wilson Associates (Consulting) Limited,C1107-CAH016,Building Works,18/12/2020,"1,850.00 "
https://opendatacommunities.org/doc/district-council/cheltenham ,Cheltenham Borough Council,Town Centre Enforcement,14083348,45386,Wireless CCTV Limited,R4000-REG025,Equipment Purchase,11/12/2020,"4,500.00 "
https://opendatacommunities.org/doc/district-council/cheltenham ,Cheltenham Borough Council,CBH Intercompany Account,14083673,3525798,Womble Bond Dickinson (UK) LLP Office Account,R4426-HLD101,Legal Expenses,23/12/2020,"3,780.60 "
Purchase Card Data,,,,,,,,,
Travel and Subsistence Payments,,,,,,,,,
Planning & Housing Enforcement,,,,,,,,,
Elections & Electorial Registration,,,,,,,,,
Revenues - Council Tax and Business Rates,,,,,,,,,
Green Space Development,,,,,,,,,
Bank Transactions ,,,,,,,,,
https://opendatacommunities.org/doc/district-council/cheltenham ,Cheltenham Borough Council,Cheltenham Municipal Offices,10034715,Bank Transactions,WEST MERCIA ENERGY  - ELECTRICITY - MUNICIPAL OFFICES - 01/10/2020-31/10/2020,R2100-ADB101,Electricity,16/12/2020,"1,976.20 "
https://opendatacommunities.org/doc/district-council/cheltenham ,Cheltenham Borough Council,Cheltenham Municipal Offices,10034715,Bank Transactions,WEST MERCIA ENERGY  -GAS - MUNICIPAL OFFICES  -  30/09/2020-31/10/2020,R2101-ADB101,Gas,16/12/2020,"1,629.75 "
https://opendatacommunities.org/doc/district-council/cheltenham ,Cheltenham Borough Council,Cheltenham Depot,10034715,Bank Transactions,WEST MERCIA ENERGY  - ELECTRICITY - CENTRAL DEPOT - SWINDON ROAD - 01/10/2020-31/10/2020,R2100-ADB103,Electricity,16/12/2020,"3,790.72 "
https://opendatacommunities.org/doc/district-council/cheltenham ,Cheltenham Borough Council,Cheltenham Depot,10034639,Bank Transactions,WEST MERCIA ENERGY - GAS - CENTRAL DEPOT - 31/08/2020-30/09/2020,R2101-ADB103,Gas,07/12/2020,732.60 
https://opendatacommunities.org/doc/district-council/cheltenham ,Cheltenham Borough Council,Cheltenham Depot,10034752,Bank Transactions,WEST MERCIA ENERGY -GAS - CENTRAL DEPOT  - 30/09/2020 - 31/10/2020,R2101-ADB103,Gas,22/12/2020,"1,628.83 "
https://opendatacommunities.org/doc/district-council/cheltenham ,Cheltenham Borough Council,Phase 3 Development,10034670,Bank Transactions,Purchase of REDACTED,C1001-CAH039,Acquisition of Buildings,10/12/2020,"145,000.00 "
https://opendatacommunities.org/doc/district-council/cheltenham ,Cheltenham Borough Council,Phase 3 Development,10034728,Bank Transactions,Deposit for REDACTED,C1001-CAH039,Acquisition of Buildings,11/12/2020,"37,706.20 "
https://opendatacommunities.org/doc/district-council/cheltenham ,Cheltenham Borough Council,Phase 3 Development,10034729,Bank Transactions,Deposit for REDACTED,C1001-CAH039,Acquisition of Buildings,11/12/2020,"12,000.00 "
https://opendatacommunities.org/doc/district-council/cheltenham ,Cheltenham Borough Council,Phase 3 Development,10034730,Bank Transactions,Reverse out,C1001-CAH039,Acquisition of Buildings,11/12/2020,"-12,000.00 "
https://opendatacommunities.org/doc/district-council/cheltenham ,Cheltenham Borough Council,Phase 3 Development,10034731,Bank Transactions,Deposit for the purchase of REDACTED,C1001-CAH039,Acquisition of Buildings,15/12/2020,"12,000.00 "
https://opendatacommunities.org/doc/district-council/cheltenham ,Cheltenham Borough Council,Phase 3 Development,10034741,Bank Transactions,Purchase of REDACTED,C1001-CAH039,Acquisition of Buildings,21/12/2020,"108,000.00 "
https://opendatacommunities.org/doc/district-council/cheltenham ,Cheltenham Borough Council,Phase 3 Development,10034758,Bank Transactions,Purchase of REDACTED,C1001-CAH039,Acquisition of Buildings,18/12/2020,"354,722.80 "
https://opendatacommunities.org/doc/district-council/cheltenham ,Cheltenham Borough Council,"Cemetery, Crematorium and Churchyards",10034715,Bank Transactions,WEST MERCIA ENERGY  - ELECTRICITY - CEMETERY & CREMATORIUM - 01/10/2020-31/10/2020,R2100-CCM001,Electricity,16/12/2020,"1,869.55 "
https://opendatacommunities.org/doc/district-council/cheltenham ,Cheltenham Borough Council,"Cemetery, Crematorium and Churchyards",10034752,Bank Transactions,WEST MERCIA ENERGY -GAS - CEMETERY & CREMATORIUM - 30/09/2020 - 31/10/2020,R2101-CCM001,Gas,22/12/2020,974.09 
https://opendatacommunities.org/doc/district-council/cheltenham ,Cheltenham Borough Council,"Cemetery, Crematorium and Churchyards",10034692,Bank Transactions,SIEMENS FIN SERV - A8949078 - LEASE RENTAL,R4002-CCM001,Tools & Equipment - Lease/Rental,14/12/2020,518.96 
https://opendatacommunities.org/doc/district-council/cheltenham ,Cheltenham Borough Council,CCTV,10034715,Bank Transactions,WEST MERCIA ENERGY  - ELECTRICITY - CCTV @ VARIOUS LOCATIONS- 01/10/2020-31/10/2020,R2100-CCT001,Electricity,16/12/2020,580.28 
https://opendatacommunities.org/doc/district-council/cheltenham ,Cheltenham Borough Council,Treasury Management,10034724,Bank Transactions,CARDNET SERVICE CHARGES - 169118221 - 540436500101602,R4428-COR006,Services - credit card charges,14/12/2020,"1,944.53 "
https://opendatacommunities.org/doc/district-council/cheltenham ,Cheltenham Borough Council,Treasury Management,10034724,Bank Transactions,CARDNET SERVICE CHARGES - 169118221 - 540436500221866,R4428-COR006,Services - credit card charges,14/12/2020,"4,008.94 "
https://opendatacommunities.org/doc/district-council/cheltenham ,Cheltenham Borough Council,Treasury Management,10034724,Bank Transactions,CARDNET SERVICE CHARGES - 500200738,R4428-COR006,Services - credit card charges,14/12/2020,854.58 
https://opendatacommunities.org/doc/district-council/cheltenham ,Cheltenham Borough Council,Car Parks - Off Street Operations,10034715,Bank Transactions,WEST MERCIA ENERGY  - ELECTRICITY - CAR PARK - GROSVENOR TERRACE  - 01/10/2020-31/10/2020,R2100-CPK001,Electricity,16/12/2020,"1,124.75 "
https://opendatacommunities.org/doc/district-council/cheltenham ,Cheltenham Borough Council,Car Parks - Off Street Operations,10034715,Bank Transactions,WEST MERCIA ENERGY  - ELECTRICITY - CAR PARK - REGENT ARCADE- 01/10/2020-31/10/2020,R2100-CPK001,Electricity,16/12/2020,"1,046.93 "
https://opendatacommunities.org/doc/district-council/cheltenham ,Cheltenham Borough Council,Car Parks - Off Street Operations,10034788,Bank Transactions,KENNET EQUIPMENT 181218768401889985,R4002-CPK001,Tools & Equipment - Lease/Rental,29/12/2020,"6,700.14 "
https://opendatacommunities.org/doc/district-council/cheltenham ,Cheltenham Borough Council,Car Parks - Off Street Operations,10034745,Bank Transactions,S/LINE 133648358 INV 26288205,R4428-CPK001,Services - credit card charges,21/12/2020,"1,523.79 "
https://opendatacommunities.org/doc/district-council/cheltenham ,Cheltenham Borough Council,Car Parks - Off Street Operations,10034745,Bank Transactions,S/LINE 133700844  INV 31868395,R4428-CPK001,Services - credit card charges,21/12/2020,600.94 
https://opendatacommunities.org/doc/district-council/cheltenham ,Cheltenham Borough Council,Town Hall Repairs & Maintenance,10034715,Bank Transactions,WEST MERCIA ENERGY  - ELECTRICITY - CHELTENHAM TOWN HALL - 01/10/2020-31/10/2020,R2100-CUL112,Electricity,16/12/2020,"6,450.61 "
https://opendatacommunities.org/doc/district-council/cheltenham ,Cheltenham Borough Council,Town Hall Repairs & Maintenance,10034715,Bank Transactions,WEST MERCIA ENERGY  -GAS - CHELTENHAM TOWN HALL -  30/09/2020-31/10/2020,R2101-CUL112,Gas,16/12/2020,"1,913.04 "
https://opendatacommunities.org/doc/district-council/cheltenham ,Cheltenham Borough Council,Pittville Pump Room Repairs & Maintenance,10034715,Bank Transactions,WEST MERCIA ENERGY  - ELECTRICITY - PITTVILLE PUMP ROOMS  - 01/10/2020-31/10/2020,R2100-CUL113,Electricity,16/12/2020,"1,131.09 "
https://opendatacommunities.org/doc/district-council/cheltenham ,Cheltenham Borough Council,Pittville Pump Room Repairs & Maintenance,10034715,Bank Transactions,WEST MERCIA ENERGY  -GAS - PITTVILLE PUMP ROOMS   -  30/09/2020-31/10/2020,R2101-CUL113,Gas,16/12/2020,555.01 
https://opendatacommunities.org/doc/district-council/cheltenham ,Cheltenham Borough Council,Art Gallery & Museum Repairs & Maintenance,10034715,Bank Transactions,WEST MERCIA ENERGY  - ELECTRICITY - WILSON ART GALLERY & MUSEUM -  01/10/2020-31/10/2020,R2100-CUL117,Electricity,16/12/2020,"4,474.26 "
https://opendatacommunities.org/doc/district-council/cheltenham ,Cheltenham Borough Council,Art Gallery & Museum Repairs & Maintenance,10034715,Bank Transactions,WEST MERCIA ENERGY  -GAS -  WILSON ART GALLERY & MUSEUM  -  30/09/2020-31/10/2020,R2101-CUL117,Gas,16/12/2020,"2,003.03 "
https://opendatacommunities.org/doc/district-council/cheltenham ,Cheltenham Borough Council,CBH Intercompany Account,10034659,Bank Transactions,CBH Transfer- CBH contribution to purchase of REDACTED,R4401-HLD101,Services - Fees and Charges,09/12/2020,"98,527.00 "
https://opendatacommunities.org/doc/district-council/cheltenham ,Cheltenham Borough Council,CBH Intercompany Account,10034660,Bank Transactions,CBH trfs into CBC bank account for share of purchase of REDACTED,R4401-HLD101,Services - Fees and Charges,09/12/2020,"-98,527.00 "
https://opendatacommunities.org/doc/district-council/cheltenham ,Cheltenham Borough Council,Supervision and Management,10034715,Bank Transactions,WEST MERCIA ENERGY  -GAS -  WALLACE HOUSE  -  30/09/2020-31/10/2020,R2101-HRA110,Gas,16/12/2020,785.48 
https://opendatacommunities.org/doc/district-council/cheltenham ,Cheltenham Borough Council,Supervision and Management,10034715,Bank Transactions,WEST MERCIA ENERGY  -GAS - COOPERS COURT-  30/09/2020-31/10/2020,R2101-HRA110,Gas,16/12/2020,749.55 
https://opendatacommunities.org/doc/district-council/cheltenham ,Cheltenham Borough Council,Supervision and Management,10034715,Bank Transactions,WEST MERCIA ENERGY  -GAS - GILBERT WARD COURT-  30/09/2020-31/10/2020,R2101-HRA110,Gas,16/12/2020,539.44 
https://opendatacommunities.org/doc/district-council/cheltenham ,Cheltenham Borough Council,Supervision and Management,10034715,Bank Transactions,WEST MERCIA ENERGY  -GAS - GOLDFOOT HOUSE-  30/09/2020-31/10/2020,R2101-HRA110,Gas,16/12/2020,719.68 
https://opendatacommunities.org/doc/district-council/cheltenham ,Cheltenham Borough Council,Supervision and Management,10034715,Bank Transactions,WEST MERCIA ENERGY  -GAS - POPES CLOSE   -  30/09/2020-31/10/2020,R2101-HRA110,Gas,16/12/2020,560.32 
https://opendatacommunities.org/doc/district-council/cheltenham ,Cheltenham Borough Council,Recreation Centre Repairs & Maintenance,10034715,Bank Transactions,WEST MERCIA ENERGY  - ELECTRICITY - LEISURE CENTRE TOMMY TAYLORS LANE - 01/10/2020-31/10/2020,R2100-REC111,Electricity,16/12/2020,"7,362.54 "
https://opendatacommunities.org/doc/district-council/cheltenham ,Cheltenham Borough Council,Recreation Centre Repairs & Maintenance,10034715,Bank Transactions,WEST MERCIA ENERGY  -GAS - LEISURE CENTRE TOMMY TAYLORS LANE -  30/09/2020-31/10/2020,R2101-REC111,Gas,16/12/2020,"9,036.93 "
https://opendatacommunities.org/doc/district-council/cheltenham ,Cheltenham Borough Council,Recreation Centre Repairs & Maintenance,10034726,Bank Transactions,"WATER PLUS 0467002027 - CHELTENHAM RECREATION CENTRE, TOMMY TAYLORS LANE CHELTENHAM - WATER CHARGE - 01/11/2020-01/12/2020",R2401-REC111,Water Services - Metered,17/12/2020,508.46 
https://opendatacommunities.org/doc/district-council/cheltenham ,Cheltenham Borough Council,Telephones,10034639,Bank Transactions,VODAFONE CORPORATION 02442783M825183 - INVOICE 96542530,R4507-SUP006,Comms - Mobile Telephones,07/12/2020,"2,157.55 "
https://opendatacommunities.org/doc/district-council/cheltenham ,Cheltenham Borough Council,Property Services,10034746,Bank Transactions,WILLIANS LLP BJS/25072 - REDACTED,R4400-SUP025,Services - Professional Fees,21/12/2020,"-2,225.00 "
https://opendatacommunities.org/doc/district-council/cheltenham ,Cheltenham Borough Council,Property Services,10034756,Bank Transactions,THRINGS LLP - LICENCE FOR USE CAKEBRIDGE PLACE,R4400-SUP025,Services - Professional Fees,22/12/2020,"-6,500.00 "
Procurement Cards,,,,,,,,,
https://opendatacommunities.org/doc/district-council/cheltenham ,Cheltenham Borough Council,Corona Virus,10034650,Procurement Cards,BUSINESS CHARGE CARD  - REDACTED - FUTURE SUPPLIES,R4980-COV019,Miscellaneous Expenses,07/12/2020,508.95 
https://opendatacommunities.org/doc/district-council/cheltenham ,Cheltenham Borough Council,Tourist/Visitor Information Centre/ Marketing Cheltenham wef 2019/20,10034650,Procurement Cards,BUSINESS CHARGE CARD - REDACTED -  FACEBOOK,R4400-TOU002,Services - Professional Fees,07/12/2020,653.37 
